Publisher Label,Publisher URI,"Supplier ID","Supplier","Invoice No.","Amount (£)","Purpose","Transaction Number","Payment Date","Organisational Unit","Cost Centre(T)","Internal Category Number"
"Wolverhampton City Council","http://opendatacommunities.org/id/metropolitan-district-council/wolverhampton","707121","Schneider Electric Limited","98048865","995.46","R&M - Departmental planned (internal)","130208214","26/03/2018","Maintenance Programme","Civic Centre Repairs & Maintenance","R2000"
"Wolverhampton City Council","http://opendatacommunities.org/id/metropolitan-district-council/wolverhampton","707121","Schneider Electric Limited","98021913","193.44","R&M - Departmental planned (internal)","130206531","14/03/2018","Maintenance Programme","Civic Centre Repairs & Maintenance","R2000"
"Wolverhampton City Council","http://opendatacommunities.org/id/metropolitan-district-council/wolverhampton","707121","Schneider Electric Limited","93056045","1,250.42","R&M - Departmental planned (internal)","130208850","16/03/2018","Maintenance Programme","Civic Centre Repairs & Maintenance","R2000"
"Wolverhampton City Council","http://opendatacommunities.org/id/metropolitan-district-council/wolverhampton","707121","Schneider Electric Limited","98010641","193.44","R&M - Departmental planned (internal)","130205697","07/03/2018","Maintenance Programme","Civic Centre Repairs & Maintenance","R2000"
"Wolverhampton City Council","http://opendatacommunities.org/id/metropolitan-district-council/wolverhampton","707164","Scribes Plus Limited","9789","363.00","Materials","130207543","23/03/2018","Bereavement Services","Crematorium","R4007"
"Wolverhampton City Council","http://opendatacommunities.org/id/metropolitan-district-council/wolverhampton","707164","Scribes Plus Limited","9786","539.00","Materials","130206700","14/03/2018","Bereavement Services","Crematorium","R4007"
"Wolverhampton City Council","http://opendatacommunities.org/id/metropolitan-district-council/wolverhampton","707174","Seca Limited","0000277450","375.74","Equipment - R & M","130206357","14/03/2018","Healthier Places Service","Healthy Schools Team","R4003"
"Wolverhampton City Council","http://opendatacommunities.org/id/metropolitan-district-council/wolverhampton","707174","Seca Limited","0000277451","99.00","Equipment - R & M","130206358","07/03/2018","Healthier Places Service","Healthy Schools Team","R4003"
"Wolverhampton City Council","http://opendatacommunities.org/id/metropolitan-district-council/wolverhampton","707176","Secom PLC","1239908","102.97","Fixtures and Fittings - R&M","130207836","07/03/2018","Visitor Economy","Bantock House Museum","R2502"
"Wolverhampton City Council","http://opendatacommunities.org/id/metropolitan-district-council/wolverhampton","707185","Security Plus Limited","661710","9.46","Services - Security","130210312","26/03/2018","Leisure Services","Bert Williams Leisure Centre","R4405"
"Wolverhampton City Council","http://opendatacommunities.org/id/metropolitan-district-council/wolverhampton","707185","Security Plus Limited","661710","9.46","Services - Security","130210312","26/03/2018","Leisure Services","Aldersley Leisure Village","R4405"
"Wolverhampton City Council","http://opendatacommunities.org/id/metropolitan-district-council/wolverhampton","707185","Security Plus Limited","661709","47.30","Services - Security","130209217","26/03/2018","Housing Revenue Account","HRA General","R4405"
"Wolverhampton City Council","http://opendatacommunities.org/id/metropolitan-district-council/wolverhampton","707185","Security Plus Limited","656864","9.46","Services - Security","130206206","02/03/2018","Leisure Services","Bert Williams Leisure Centre","R4405"
"Wolverhampton City Council","http://opendatacommunities.org/id/metropolitan-district-council/wolverhampton","707185","Security Plus Limited","656864","9.46","Services - Security","130206206","02/03/2018","Leisure Services","Aldersley Leisure Village","R4405"
"Wolverhampton City Council","http://opendatacommunities.org/id/metropolitan-district-council/wolverhampton","707185","Security Plus Limited","635516","37.84","Services - Security","130191589","14/03/2018","Housing Revenue Account","HRA General","R4405"
"Wolverhampton City Council","http://opendatacommunities.org/id/metropolitan-district-council/wolverhampton","707185","Security Plus Limited","661707","9.46","Services - Security","130209215","26/03/2018","Visitor Economy","Bantock House Museum","R4405"
"Wolverhampton City Council","http://opendatacommunities.org/id/metropolitan-district-council/wolverhampton","707185","Security Plus Limited","660241","2,407.90","Services - Security","130207838","26/03/2018","The Hub","Cash in Transit (Operational Finance)","R4405"
"Wolverhampton City Council","http://opendatacommunities.org/id/metropolitan-district-council/wolverhampton","707185","Security Plus Limited","649080","20.00","Services - Security","130207452","02/03/2018","The Hub","Banking","R4405"
"Wolverhampton City Council","http://opendatacommunities.org/id/metropolitan-district-council/wolverhampton","707185","Security Plus Limited","635513","132.44","Services - Security","130191586","14/03/2018","Housing Revenue Account","HRA General","R4405"
"Wolverhampton City Council","http://opendatacommunities.org/id/metropolitan-district-council/wolverhampton","707185","Security Plus Limited","661711","104.06","Services - Security","130209218","26/03/2018","Housing Revenue Account","HRA General","R4405"
"Wolverhampton City Council","http://opendatacommunities.org/id/metropolitan-district-council/wolverhampton","707185","Security Plus Limited","661708","9.46","Services - Security","130209216","26/03/2018","Leisure Services","Bert Williams Leisure Centre","R4405"
"Wolverhampton City Council","http://opendatacommunities.org/id/metropolitan-district-council/wolverhampton","707185","Security Plus Limited","661708","9.46","Services - Security","130209216","26/03/2018","Leisure Services","Aldersley Leisure Village","R4405"
"Wolverhampton City Council","http://opendatacommunities.org/id/metropolitan-district-council/wolverhampton","707185","Security Plus Limited","660239","20.00","Services - Security","130207693","26/03/2018","The Hub","Banking","R4405"
"Wolverhampton City Council","http://opendatacommunities.org/id/metropolitan-district-council/wolverhampton","707185","Security Plus Limited","660240","3,174.64","Services - Security","130207837","26/03/2018","The Hub","Cash in Transit (Operational Finance)","R4405"
"Wolverhampton City Council","http://opendatacommunities.org/id/metropolitan-district-council/wolverhampton","707185","Security Plus Limited","660238","6,375.01","Services - Security","130207692","26/03/2018","Parking Services","On Street Parking","R4405"
"Wolverhampton City Council","http://opendatacommunities.org/id/metropolitan-district-council/wolverhampton","707191","Seesaws Day Nursery","NEF Spring 2018 INST 2 Merridale","18,319.00","TPP - Private Nursery Education Funding","190439910","23/03/2018","Early Years","Early Years Universal Entitlement for 3 and 4 Year Olds","R5035"
"Wolverhampton City Council","http://opendatacommunities.org/id/metropolitan-district-council/wolverhampton","707191","Seesaws Day Nursery","EYPP Spring 2018 Merridale","286.20","TPP - Private Nursery Education Funding","190441759","26/03/2018","Early Years","Early Years Pupil Premium","R5035"
"Wolverhampton City Council","http://opendatacommunities.org/id/metropolitan-district-council/wolverhampton","707191","Seesaws Day Nursery","TFT Spring 2018 Inst 2 Penn","5,895.00","TPP - Private Nursery Education Funding","190439899","23/03/2018","Early Years","Early Years Entitlement Funding for Disadvantaged 2 Year Olds","R5035"
"Wolverhampton City Council","http://opendatacommunities.org/id/metropolitan-district-council/wolverhampton","707191","Seesaws Day Nursery","NEF Spring 2018 INST 2 Penn","13,979.00","TPP - Private Nursery Education Funding","190439909","23/03/2018","Early Years","Early Years Universal Entitlement for 3 and 4 Year Olds","R5035"
"Wolverhampton City Council","http://opendatacommunities.org/id/metropolitan-district-council/wolverhampton","707191","Seesaws Day Nursery","3828","94.00","TPP - Child Care provided for client","130208693","09/03/2018","Skills","IMPACT","R5034"
"Wolverhampton City Council","http://opendatacommunities.org/id/metropolitan-district-council/wolverhampton","707191","Seesaws Day Nursery","TFT Spring 2018 Inst 2 Merridale","4,150.08","TPP - Private Nursery Education Funding","190439900","23/03/2018","Early Years","Early Years Entitlement Funding for Disadvantaged 2 Year Olds","R5035"
"Wolverhampton City Council","http://opendatacommunities.org/id/metropolitan-district-council/wolverhampton","707196","Select Alarm Systems Limited","88032","632.00","Services - Security","130210056","26/03/2018","Maintenance Programme","Centralised R&M","R4405"
"Wolverhampton City Council","http://opendatacommunities.org/id/metropolitan-district-council/wolverhampton","707196","Select Alarm Systems Limited","87934","178.00","Services - Security","130208050","07/03/2018","Maintenance Programme","Centralised R&M","R4405"
"Wolverhampton City Council","http://opendatacommunities.org/id/metropolitan-district-council/wolverhampton","707196","Select Alarm Systems Limited","87933","218.00","Services - Security","130208049","07/03/2018","Bereavement Services","Cemeteries","R4405"
"Wolverhampton City Council","http://opendatacommunities.org/id/metropolitan-district-council/wolverhampton","707196","Select Alarm Systems Limited","86977","235.00","Equipment - Purchase","130208405","09/03/2018","Early Intervention","EIP Locality 8 � Children�s Village","R4000"
"Wolverhampton City Council","http://opendatacommunities.org/id/metropolitan-district-council/wolverhampton","707196","Select Alarm Systems Limited","85096","101.00","Services - Security","130210052","21/03/2018","Maintenance Programme","Centralised R&M","R4405"
"Wolverhampton City Council","http://opendatacommunities.org/id/metropolitan-district-council/wolverhampton","707196","Select Alarm Systems Limited","87936","138.00","Services - Security","130208052","14/03/2018","Maintenance Programme","Centralised R&M","R4405"
"Wolverhampton City Council","http://opendatacommunities.org/id/metropolitan-district-council/wolverhampton","707196","Select Alarm Systems Limited","87160","210.00","Services - Security","130208854","14/03/2018","Headstart","Headstart Phase 3","R4405"
"Wolverhampton City Council","http://opendatacommunities.org/id/metropolitan-district-council/wolverhampton","707196","Select Alarm Systems Limited","87417","101.00","Services - Security","130208856","14/03/2018","Maintenance Programme","Centralised R&M","R4405"
"Wolverhampton City Council","http://opendatacommunities.org/id/metropolitan-district-council/wolverhampton","707196","Select Alarm Systems Limited","87958","103.00","Services - Security","130208697","14/03/2018","Maintenance Programme","Centralised R&M","R4405"
"Wolverhampton City Council","http://opendatacommunities.org/id/metropolitan-district-council/wolverhampton","707196","Select Alarm Systems Limited","87935","150.00","Services - Security","130208051","14/03/2018","Maintenance Programme","Centralised R&M","R4405"
"Wolverhampton City Council","http://opendatacommunities.org/id/metropolitan-district-council/wolverhampton","707196","Select Alarm Systems Limited","85429","101.00","Services - Security","130208400","07/03/2018","Maintenance Programme","Centralised R&M","R4405"
"Wolverhampton City Council","http://opendatacommunities.org/id/metropolitan-district-council/wolverhampton","707196","Select Alarm Systems Limited","86201","440.00","Fixtures and Fittings - R&M","130208402","07/03/2018","Independent Living Service","Independent Living Service","R2502"
"Wolverhampton City Council","http://opendatacommunities.org/id/metropolitan-district-council/wolverhampton","707196","Select Alarm Systems Limited","86511","400.00","Services - Security","130208047","07/03/2018","Maintenance Programme","Centralised R&M","R4405"
"Wolverhampton City Council","http://opendatacommunities.org/id/metropolitan-district-council/wolverhampton","707196","Select Alarm Systems Limited","84359","91.00","Fixtures and Fittings - R&M","130206830","21/03/2018","Adults Assessment & Care Management North","Adult Services � North","R2502"
"Wolverhampton City Council","http://opendatacommunities.org/id/metropolitan-district-council/wolverhampton","707196","Select Alarm Systems Limited","87887","103.00","Services - Security","130208694","14/03/2018","Maintenance Programme","Centralised R&M","R4405"
"Wolverhampton City Council","http://opendatacommunities.org/id/metropolitan-district-council/wolverhampton","707196","Select Alarm Systems Limited","85838","432.00","Services - Security","130210053","23/03/2018","Maintenance Programme","Centralised R&M","R4405"
"Wolverhampton City Council","http://opendatacommunities.org/id/metropolitan-district-council/wolverhampton","707196","Select Alarm Systems Limited","87399","148.00","Services - Security","130208855","14/03/2018","Early Intervention","EIP Locality 5 � Whitmore Reans","R4405"
"Wolverhampton City Council","http://opendatacommunities.org/id/metropolitan-district-council/wolverhampton","707196","Select Alarm Systems Limited","87466","101.00","Services - Security","130208857","14/03/2018","Maintenance Programme","Centralised R&M","R4405"
"Wolverhampton City Council","http://opendatacommunities.org/id/metropolitan-district-council/wolverhampton","707196","Select Alarm Systems Limited","87628","103.00","Services - Security","130208859","14/03/2018","Maintenance Programme","Centralised R&M","R4405"
"Wolverhampton City Council","http://opendatacommunities.org/id/metropolitan-district-council/wolverhampton","707196","Select Alarm Systems Limited","85809","91.00","Fixtures and Fittings - R&M","130206831","14/03/2018","Adults Assessment & Care Management North","Adult Services � North","R2502"
"Wolverhampton City Council","http://opendatacommunities.org/id/metropolitan-district-council/wolverhampton","707196","Select Alarm Systems Limited","86550","395.00","Services - Security","130208048","07/03/2018","Maintenance Programme","Centralised R&M","R4405"
"Wolverhampton City Council","http://opendatacommunities.org/id/metropolitan-district-council/wolverhampton","707196","Select Alarm Systems Limited","86623","101.00","Services - Security","130208403","07/03/2018","Maintenance Programme","Centralised R&M","R4405"
"Wolverhampton City Council","http://opendatacommunities.org/id/metropolitan-district-council/wolverhampton","707196","Select Alarm Systems Limited","88031","85.00","Services - Security","130210055","23/03/2018","Maintenance Programme","Centralised R&M","R4405"
"Wolverhampton City Council","http://opendatacommunities.org/id/metropolitan-district-council/wolverhampton","707196","Select Alarm Systems Limited","88031","200.00","Services - Security","130210055","23/03/2018","Maintenance Programme","Centralised R&M","R4405"
"Wolverhampton City Council","http://opendatacommunities.org/id/metropolitan-district-council/wolverhampton","707196","Select Alarm Systems Limited","86336","186.00","Services - Security","130208530","09/03/2018","Maintenance Programme","Centralised R&M","R4405"
"Wolverhampton City Council","http://opendatacommunities.org/id/metropolitan-district-council/wolverhampton","707196","Select Alarm Systems Limited","86318","1,280.00","Services - Security","130210054","21/03/2018","Maintenance Programme","Centralised R&M","R4405"
"Wolverhampton City Council","http://opendatacommunities.org/id/metropolitan-district-council/wolverhampton","707196","Select Alarm Systems Limited","84842","176.00","Fixtures and Fittings - R&M","130210050","21/03/2018","Independent Living Service","Independent Living Service","R2502"
"Wolverhampton City Council","http://opendatacommunities.org/id/metropolitan-district-council/wolverhampton","707196","Select Alarm Systems Limited","86174","250.00","Construction and Conversion","130208853","14/03/2018","","Co-Location Programme","C1100"
"Wolverhampton City Council","http://opendatacommunities.org/id/metropolitan-district-council/wolverhampton","707196","Select Alarm Systems Limited","86776","101.00","Construction and Conversion","130208404","14/03/2018","","Co-Location Programme","C1100"
"Wolverhampton City Council","http://opendatacommunities.org/id/metropolitan-district-council/wolverhampton","707196","Select Alarm Systems Limited","87618","228.00","Services - Security","130208858","14/03/2018","Maintenance Programme","Centralised R&M","R4405"
"Wolverhampton City Council","http://opendatacommunities.org/id/metropolitan-district-council/wolverhampton","707196","Select Alarm Systems Limited","86657","350.00","Fixtures and Fittings - R&M","130206832","14/03/2018","Adults Assessment & Care Management North","Adult Services � North","R2502"
"Wolverhampton City Council","http://opendatacommunities.org/id/metropolitan-district-council/wolverhampton","707196","Select Alarm Systems Limited","86171","101.00","Services - Security","130208401","07/03/2018","Maintenance Programme","Centralised R&M","R4405"
"Wolverhampton City Council","http://opendatacommunities.org/id/metropolitan-district-council/wolverhampton","707196","Select Alarm Systems Limited","86984","435.00","Services - Security","130208406","07/03/2018","Environmental Maintenance","Ground Maintenance West","R4405"
"Wolverhampton City Council","http://opendatacommunities.org/id/metropolitan-district-council/wolverhampton","707196","Select Alarm Systems Limited","85363","156.00","Fixtures and Fittings - R&M","130208399","09/03/2018","Independent Living Service","Independent Living Service","R2502"
"Wolverhampton City Council","http://opendatacommunities.org/id/metropolitan-district-council/wolverhampton","707196","Select Alarm Systems Limited","85036","221.00","Services - Security","130210051","21/03/2018","Maintenance Programme","Centralised R&M","R4405"
"Wolverhampton City Council","http://opendatacommunities.org/id/metropolitan-district-council/wolverhampton","707196","Select Alarm Systems Limited","87888","103.00","Services - Security","130208695","14/03/2018","Maintenance Programme","Centralised R&M","R4405"
"Wolverhampton City Council","http://opendatacommunities.org/id/metropolitan-district-council/wolverhampton","707196","Select Alarm Systems Limited","85768","91.00","Services - Security","130208851","14/03/2018","Headstart","Headstart Phase 3","R4405"
"Wolverhampton City Council","http://opendatacommunities.org/id/metropolitan-district-council/wolverhampton","707196","Select Alarm Systems Limited","87683","103.00","Services - Security","130208860","14/03/2018","Maintenance Programme","Centralised R&M","R4405"
"Wolverhampton City Council","http://opendatacommunities.org/id/metropolitan-district-council/wolverhampton","707196","Select Alarm Systems Limited","86173","202.00","Services - Security","130208852","14/03/2018","Maintenance Programme","Centralised R&M","R4405"
"Wolverhampton City Council","http://opendatacommunities.org/id/metropolitan-district-council/wolverhampton","707196","Select Alarm Systems Limited","87957","295.00","Fixtures and Fittings - R&M","130208696","14/03/2018","Adult Education","The Maltings","R2502"
"Wolverhampton City Council","http://opendatacommunities.org/id/metropolitan-district-council/wolverhampton","707213","Sellick Partnership Group Limited","INV221869","1,038.92","Agency Staff","130208698","14/03/2018","Legal Services","Legal Services","R1100"
"Wolverhampton City Council","http://opendatacommunities.org/id/metropolitan-district-council/wolverhampton","707213","Sellick Partnership Group Limited","INV222966","1,573.00","Agency Staff","130210061","26/03/2018","Legal Services","Legal Services","R1100"
"Wolverhampton City Council","http://opendatacommunities.org/id/metropolitan-district-council/wolverhampton","707213","Sellick Partnership Group Limited","INV221089","1,079.96","Agency Staff","130207694","07/03/2018","Legal Services","Legal Services","R1100"
"Wolverhampton City Council","http://opendatacommunities.org/id/metropolitan-district-council/wolverhampton","707213","Sellick Partnership Group Limited","INV220813","1,727.00","Agency Staff","130207421","07/03/2018","Legal Services","Legal Services","R1100"
"Wolverhampton City Council","http://opendatacommunities.org/id/metropolitan-district-council/wolverhampton","707213","Sellick Partnership Group Limited","INV221092","680.96","Agency Staff","130207697","07/03/2018","Legal Services","Legal Services","R1100"
"Wolverhampton City Council","http://opendatacommunities.org/id/metropolitan-district-council/wolverhampton","707213","Sellick Partnership Group Limited","INV221318","1,694.00","Agency Staff","130208215","14/03/2018","Legal Services","Legal Services","R1100"
"Wolverhampton City Council","http://opendatacommunities.org/id/metropolitan-district-council/wolverhampton","707213","Sellick Partnership Group Limited","INV222059","1,672.00","Agency Staff","130209054","21/03/2018","Legal Services","Legal Services","R1100"
"Wolverhampton City Council","http://opendatacommunities.org/id/metropolitan-district-council/wolverhampton","707213","Sellick Partnership Group Limited","INV221091","991.42","Agency Staff","130207696","07/03/2018","Legal Services","Legal Services","R1100"
"Wolverhampton City Council","http://opendatacommunities.org/id/metropolitan-district-council/wolverhampton","707213","Sellick Partnership Group Limited","INV221090","719.34","Agency Staff","130207695","07/03/2018","Legal Services","Legal Services","R1100"
"Wolverhampton City Council","http://opendatacommunities.org/id/metropolitan-district-council/wolverhampton","707227","Sentinel Laboratories Limited","0000135810","236.80","Equipment - Purchase","130206701","07/03/2018","Bereavement Services","Coroners","R4000"
"Wolverhampton City Council","http://opendatacommunities.org/id/metropolitan-district-council/wolverhampton","707228","Senwod Contracting Limited","SI-12479","4,942.85","Hire of Plant","130209434","21/03/2018","Environmental Maintenance","Ground Maintenance East","R3201"
"Wolverhampton City Council","http://opendatacommunities.org/id/metropolitan-district-council/wolverhampton","707228","Senwod Contracting Limited","SI-12484","2,350.00","R&M - Departmental response (external)","130209770","23/03/2018","Environmental Maintenance","Parks - South West Area Management","R2003"
"Wolverhampton City Council","http://opendatacommunities.org/id/metropolitan-district-council/wolverhampton","707228","Senwod Contracting Limited","SI-12475","3,829.92","Hire of Plant","130208861","21/03/2018","Environmental Maintenance","Ground Maintenance East","R3201"
"Wolverhampton City Council","http://opendatacommunities.org/id/metropolitan-district-council/wolverhampton","707228","Senwod Contracting Limited","SI-12483","2,950.00","R&M - Departmental response (external)","130209769","23/03/2018","Environmental Maintenance","Parks - East Area Management","R2003"
"Wolverhampton City Council","http://opendatacommunities.org/id/metropolitan-district-council/wolverhampton","707228","Senwod Contracting Limited","SI-12480","2,650.00","Hire of Plant","130209435","21/03/2018","Environmental Maintenance","Ground Maintenance East","R3201"
"Wolverhampton City Council","http://opendatacommunities.org/id/metropolitan-district-council/wolverhampton","707234","Services4Schools Ltd","6670a corr","-50.00","Services - Professional Fees","130208296","07/03/2018","Schools","Castlecroft Primary School","R4400"
"Wolverhampton City Council","http://opendatacommunities.org/id/metropolitan-district-council/wolverhampton","707247","Severn Trent Water Limited","2150607561-ST0314","157.50","Water Charges","190430788","07/03/2018","Housing Revenue Account","Hostels / Outreach","R2400"
"Wolverhampton City Council","http://opendatacommunities.org/id/metropolitan-district-council/wolverhampton","707247","Severn Trent Water Limited","9090050715-ST0312","188.36","Water Charges","190430786","07/03/2018","Housing Revenue Account","Hostels / Outreach","R2400"
"Wolverhampton City Council","http://opendatacommunities.org/id/metropolitan-district-council/wolverhampton","707247","Severn Trent Water Limited","9910091234-ST0328","157.50","Water Charges","190434323","14/03/2018","Specialist Support","MAST - Key Team","R2400"
"Wolverhampton City Council","http://opendatacommunities.org/id/metropolitan-district-council/wolverhampton","707247","Severn Trent Water Limited","6503790118-ST0327","9.13","Water Charges","190434322","14/03/2018","Specialist Support","MAST - Key Team","R2400"
"Wolverhampton City Council","http://opendatacommunities.org/id/metropolitan-district-council/wolverhampton","707247","Severn Trent Water Limited","1640050608-ST0331","188.36","Water Charges","190434326","14/03/2018","Specialist Support","MAST - Key Team","R2400"
"Wolverhampton City Council","http://opendatacommunities.org/id/metropolitan-district-council/wolverhampton","707247","Severn Trent Water Limited","5981311000-ST0320","9.94","Water Charges","190434315","14/03/2018","Specialist Support","MAST - Key Team","R2400"
"Wolverhampton City Council","http://opendatacommunities.org/id/metropolitan-district-council/wolverhampton","707247","Severn Trent Water Limited","2800105425 MAR18","202.11","No Recourse to Public Funds","190434846","14/03/2018","Child Protection","Childrens with Disabilities Team","R6314"
"Wolverhampton City Council","http://opendatacommunities.org/id/metropolitan-district-council/wolverhampton","707247","Severn Trent Water Limited","5101136703-ST0336","9.13","Water Charges","190434331","14/03/2018","Specialist Support","MAST - Key Team","R2400"
"Wolverhampton City Council","http://opendatacommunities.org/id/metropolitan-district-council/wolverhampton","707247","Severn Trent Water Limited","6650040062-ST0319","157.50","Water Charges","190434314","14/03/2018","Specialist Support","MAST - Key Team","R2400"
"Wolverhampton City Council","http://opendatacommunities.org/id/metropolitan-district-council/wolverhampton","707247","Severn Trent Water Limited","5980764102-ST0326","9.94","Water Charges","190434321","14/03/2018","Specialist Support","MAST - Key Team","R2400"
"Wolverhampton City Council","http://opendatacommunities.org/id/metropolitan-district-council/wolverhampton","707247","Severn Trent Water Limited","6830098043-ST0323","188.36","Water Charges","190434318","14/03/2018","Specialist Support","MAST - Key Team","R2400"
"Wolverhampton City Council","http://opendatacommunities.org/id/metropolitan-district-council/wolverhampton","707247","Severn Trent Water Limited","5981310948-ST0325","136.61","Water Charges","190434320","14/03/2018","Specialist Support","MAST - Key Team","R2400"
"Wolverhampton City Council","http://opendatacommunities.org/id/metropolitan-district-council/wolverhampton","707247","Severn Trent Water Limited","2150370682-ST0313","157.50","Water Charges","190430787","07/03/2018","Housing Revenue Account","Hostels / Outreach","R2400"
"Wolverhampton City Council","http://opendatacommunities.org/id/metropolitan-district-council/wolverhampton","707247","Severn Trent Water Limited","2150766461-ST0316","188.36","Water Charges","190430790","07/03/2018","Housing Revenue Account","Hostels / Outreach","R2400"
"Wolverhampton City Council","http://opendatacommunities.org/id/metropolitan-district-council/wolverhampton","707247","Severn Trent Water Limited","7370067698-ST0322","9.13","Water Charges","190434317","14/03/2018","Specialist Support","MAST - Key Team","R2400"
"Wolverhampton City Council","http://opendatacommunities.org/id/metropolitan-district-council/wolverhampton","707247","Severn Trent Water Limited","1481069438-ST0330","9.13","Water Charges","190434324","14/03/2018","Specialist Support","MAST - Key Team","R2400"
"Wolverhampton City Council","http://opendatacommunities.org/id/metropolitan-district-council/wolverhampton","707247","Severn Trent Water Limited","3050054622-ST0332","188.36","Water Charges","190434327","14/03/2018","Specialist Support","MAST - Key Team","R2400"
"Wolverhampton City Council","http://opendatacommunities.org/id/metropolitan-district-council/wolverhampton","707247","Severn Trent Water Limited","4700520707-ST0335","9.94","Water Charges","190434330","14/03/2018","Specialist Support","MAST - Key Team","R2400"
"Wolverhampton City Council","http://opendatacommunities.org/id/metropolitan-district-council/wolverhampton","707247","Severn Trent Water Limited","4700520244-ST0334","157.50","Water Charges","190434329","14/03/2018","Specialist Support","MAST - Key Team","R2400"
"Wolverhampton City Council","http://opendatacommunities.org/id/metropolitan-district-council/wolverhampton","707247","Severn Trent Water Limited","2150210178-ST0317","216.04","Water Charges","190430791","07/03/2018","Housing Revenue Account","Hostels / Outreach","R2400"
"Wolverhampton City Council","http://opendatacommunities.org/id/metropolitan-district-council/wolverhampton","707247","Severn Trent Water Limited","1483104832-ST0315","235.22","Water Charges","190430789","07/03/2018","Housing Revenue Account","Hostels / Outreach","R2400"
"Wolverhampton City Council","http://opendatacommunities.org/id/metropolitan-district-council/wolverhampton","707247","Severn Trent Water Limited","6370123138-ST0318","369.29","Water Charges","190430792","07/03/2018","Housing Revenue Account","Hostels / Outreach","R2400"
"Wolverhampton City Council","http://opendatacommunities.org/id/metropolitan-district-council/wolverhampton","707247","Severn Trent Water Limited","5980406384-ST0324","9.94","Water Charges","190434319","14/03/2018","Specialist Support","MAST - Key Team","R2400"
"Wolverhampton City Council","http://opendatacommunities.org/id/metropolitan-district-council/wolverhampton","707247","Severn Trent Water Limited","1481937269-ST0330","9.13","Water Charges","190434325","14/03/2018","Specialist Support","MAST - Key Team","R2400"
"Wolverhampton City Council","http://opendatacommunities.org/id/metropolitan-district-council/wolverhampton","707247","Severn Trent Water Limited","3710032334-ST0333","188.36","Water Charges","190434328","14/03/2018","Specialist Support","MAST - Key Team","R2400"
"Wolverhampton City Council","http://opendatacommunities.org/id/metropolitan-district-council/wolverhampton","707247","Severn Trent Water Limited","8232811420-ST0321","9.13","Water Charges","190434316","14/03/2018","Specialist Support","MAST - Key Team","R2400"
"Wolverhampton City Council","http://opendatacommunities.org/id/metropolitan-district-council/wolverhampton","707249","Severn Valley Window & Door Limited","24015","318.65","R&M - Departmental planned (external)","130208531","14/03/2018","Maintenance Programme","Centralised R&M","R2001"
"Wolverhampton City Council","http://opendatacommunities.org/id/metropolitan-district-council/wolverhampton","707257","SG World Limited","30751685","1,214.50","Equipment - Purchase","130208532","21/03/2018","Early Intervention","EIP Locality 1 - Eastfields","R4000"
"Wolverhampton City Council","http://opendatacommunities.org/id/metropolitan-district-council/wolverhampton","707257","SG World Limited","30752452","200.00","Equipment - Purchase","130208533","26/03/2018","Early Intervention","EIP Locality 1 - Eastfields","R4000"
"Wolverhampton City Council","http://opendatacommunities.org/id/metropolitan-district-council/wolverhampton","707271","Shaw & Sons Limited","0000262807","99.80","Stationery","130206080","07/03/2018","Legal Services","Legal Services","R4308"
"Wolverhampton City Council","http://opendatacommunities.org/id/metropolitan-district-council/wolverhampton","707271","Shaw & Sons Limited","0000262985","2,005.83","Stationery","130207544","21/03/2018","Democratic Services","Local Government Elections","R4308"
"Wolverhampton City Council","http://opendatacommunities.org/id/metropolitan-district-council/wolverhampton","707271","Shaw & Sons Limited","0009011940","-139.30","Stationery","130176715","07/03/2018","Democratic Services","General Elections","R4308"
"Wolverhampton City Council","http://opendatacommunities.org/id/metropolitan-district-council/wolverhampton","707271","Shaw & Sons Limited","0000262191","116.25","Stationery","130201595","07/03/2018","Mental Health Assesment & Care Management","Mental Health Assessment & Care Management","R4308"
"Wolverhampton City Council","http://opendatacommunities.org/id/metropolitan-district-council/wolverhampton","707295","Shropshire Coffee Limited","144980","255.85","Provisions (Resale)","130210314","23/03/2018","Adult Education","Caf�","R4102"
"Wolverhampton City Council","http://opendatacommunities.org/id/metropolitan-district-council/wolverhampton","707295","Shropshire Coffee Limited","144326","71.50","Provisions (Resale)","130210313","21/03/2018","Adult Education","Caf�","R4102"
"Wolverhampton City Council","http://opendatacommunities.org/id/metropolitan-district-council/wolverhampton","707296","Shropshire Council","EAS000414","4,034.00","Subscriptions","130207422","14/03/2018","Looked After Children","Adoption and Residence Team & Allowances","R4701"
"Wolverhampton City Council","http://opendatacommunities.org/id/metropolitan-district-council/wolverhampton","707296","Shropshire Council","EFX009137","4,560.00","Services - Professional Fees","130209220","16/03/2018","Looked After Children","Pupil Premium","R4400"
"Wolverhampton City Council","http://opendatacommunities.org/id/metropolitan-district-council/wolverhampton","707296","Shropshire Council","HHA001381","418.88","Client Transport - SEN","130208699","09/03/2018","Looked After Children","Looked After Team 1","R3043"
"Wolverhampton City Council","http://opendatacommunities.org/id/metropolitan-district-council/wolverhampton","707296","Shropshire Council","EJM001046","575.00","Services - Professional Fees","130210924","26/03/2018","Standards and Vulnerable Pupils","Music Support Team","R4400"
"Wolverhampton City Council","http://opendatacommunities.org/id/metropolitan-district-council/wolverhampton","707303","Sico Europe Limited","INV0119043","10,152.00","Equipment - Catering","130208408","16/03/2018","Catering","Education Catering - General Overheads","R4010"
"Wolverhampton City Council","http://opendatacommunities.org/id/metropolitan-district-council/wolverhampton","707307","Siemens Financial Services Limited","244/18/0118002","208.67","Equipment - Hire","130206955","16/03/2018","Adult Education","Beckminster","R4001"
"Wolverhampton City Council","http://opendatacommunities.org/id/metropolitan-district-council/wolverhampton","707313","Signature","SI00197653","240.00","Exam Expenses (Non-Employee)","130210063","23/03/2018","Adult Education","Language Studies Delivery Area","R4630"
"Wolverhampton City Council","http://opendatacommunities.org/id/metropolitan-district-council/wolverhampton","707313","Signature","SI00197335","35.00","Exam Expenses (Non-Employee)","130210062","23/03/2018","Adult Education","Language Studies Delivery Area","R4630"
"Wolverhampton City Council","http://opendatacommunities.org/id/metropolitan-district-council/wolverhampton","707321","Signs Now UK","INV/270/9266","555.06","Signage and Labels","130209221","16/03/2018","Headstart","Headstart - Young People Engagement","R4009"
"Wolverhampton City Council","http://opendatacommunities.org/id/metropolitan-district-council/wolverhampton","707321","Signs Now UK","INV/270/8756","253.50","Signage and Labels","130209607","16/03/2018","Early Intervention","HOS Early Intervention","R4009"
"Wolverhampton City Council","http://opendatacommunities.org/id/metropolitan-district-council/wolverhampton","707344","Sing Up","100036863","415.00","Services - Professional Fees","130206956","21/03/2018","Standards and Vulnerable Pupils","Music Support Team","R4400"
"Wolverhampton City Council","http://opendatacommunities.org/id/metropolitan-district-council/wolverhampton","707344","Sing Up","100036863","75.00","Services - Professional Fees","130206956","21/03/2018","Standards and Vulnerable Pupils","Music Support Team","R4400"
"Wolverhampton City Council","http://opendatacommunities.org/id/metropolitan-district-council/wolverhampton","707346","Sintons Llp","TP140275/ER3 Your ref: 135794.001","13,517.55","Insurance - General","190440240","23/03/2018","Audit Services","Legal Liability","R4962"
"Wolverhampton City Council","http://opendatacommunities.org/id/metropolitan-district-council/wolverhampton","707385","Smestow School Spec. Sports College","SEN Mainstream Top Ups Spring Term 2017/18 - Smestow Academy","7,328.08","Grant Payments","190439950","23/03/2018","Schools","High Needs Top Up -Mainstream Schools/Academies","R4700"
"Wolverhampton City Council","http://opendatacommunities.org/id/metropolitan-district-council/wolverhampton","707386","Smile Education Recruitment","INV002615","148.39","Grant Payments","130207131","14/03/2018","Early Intervention","EIP Locality 7 � Low Hill","R4700"
"Wolverhampton City Council","http://opendatacommunities.org/id/metropolitan-district-council/wolverhampton","707386","Smile Education Recruitment","INV002615","-148.39","Grant Payments","130207131","14/03/2018","Early Intervention","EIP Locality 7 � Low Hill","R4700"
"Wolverhampton City Council","http://opendatacommunities.org/id/metropolitan-district-council/wolverhampton","707386","Smile Education Recruitment","INV002615","148.39","Grant Payments","130207131","14/03/2018","Early Intervention","EIP Locality 7 � Low Hill","R4700"
"Wolverhampton City Council","http://opendatacommunities.org/id/metropolitan-district-council/wolverhampton","707386","Smile Education Recruitment","INV002467","269.33","Grant Payments","130207130","07/03/2018","Early Intervention","EIP Locality 7 � Low Hill","R4700"
"Wolverhampton City Council","http://opendatacommunities.org/id/metropolitan-district-council/wolverhampton","707386","Smile Education Recruitment","INV002467","-269.33","Grant Payments","130207130","07/03/2018","Early Intervention","EIP Locality 7 � Low Hill","R4700"
"Wolverhampton City Council","http://opendatacommunities.org/id/metropolitan-district-council/wolverhampton","707386","Smile Education Recruitment","INV002467","269.33","Grant Payments","130207130","07/03/2018","Early Intervention","EIP Locality 7 � Low Hill","R4700"
"Wolverhampton City Council","http://opendatacommunities.org/id/metropolitan-district-council/wolverhampton","707386","Smile Education Recruitment","INV002766","148.39","Grant Payments","130208053","21/03/2018","Early Intervention","EIP Locality 7 � Low Hill","R4700"
"Wolverhampton City Council","http://opendatacommunities.org/id/metropolitan-district-council/wolverhampton","707386","Smile Education Recruitment","INV002766","-148.39","Grant Payments","130208053","21/03/2018","Early Intervention","EIP Locality 7 � Low Hill","R4700"
"Wolverhampton City Council","http://opendatacommunities.org/id/metropolitan-district-council/wolverhampton","707386","Smile Education Recruitment","INV002766","148.39","Grant Payments","130208053","21/03/2018","Early Intervention","EIP Locality 7 � Low Hill","R4700"
"Wolverhampton City Council","http://opendatacommunities.org/id/metropolitan-district-council/wolverhampton","707388","Smith Bros(Caer Conan)Wholesale Limited","551283","53.88","Materials","130210507","23/03/2018","Street Lighting","Street Lighting Maintenance","R4007"
"Wolverhampton City Council","http://opendatacommunities.org/id/metropolitan-district-council/wolverhampton","707388","Smith Bros(Caer Conan)Wholesale Limited","545894","835.20","Materials","130206081","07/03/2018","Street Lighting","Street Lighting Maintenance","R4007"
"Wolverhampton City Council","http://opendatacommunities.org/id/metropolitan-district-council/wolverhampton","707388","Smith Bros(Caer Conan)Wholesale Limited","549185","7.07","Materials","130208700","09/03/2018","Street Lighting","Street Lighting Maintenance","R4007"
"Wolverhampton City Council","http://opendatacommunities.org/id/metropolitan-district-council/wolverhampton","707388","Smith Bros(Caer Conan)Wholesale Limited","547098","824.40","Materials","130206834","07/03/2018","Street Lighting","Street Lighting Maintenance","R4007"
"Wolverhampton City Council","http://opendatacommunities.org/id/metropolitan-district-council/wolverhampton","707388","Smith Bros(Caer Conan)Wholesale Limited","550114","116.48","Materials","130209772","21/03/2018","Street Lighting","Street Lighting Maintenance","R4007"
"Wolverhampton City Council","http://opendatacommunities.org/id/metropolitan-district-council/wolverhampton","707388","Smith Bros(Caer Conan)Wholesale Limited","549188","7.07","Materials","130208863","14/03/2018","Street Lighting","Street Lighting Maintenance","R4007"
"Wolverhampton City Council","http://opendatacommunities.org/id/metropolitan-district-council/wolverhampton","707388","Smith Bros(Caer Conan)Wholesale Limited","550113","5,720.88","Materials","130209771","26/03/2018","Street Lighting","Street Lighting Maintenance","R4007"
"Wolverhampton City Council","http://opendatacommunities.org/id/metropolitan-district-council/wolverhampton","707388","Smith Bros(Caer Conan)Wholesale Limited","547099","20,282.88","Materials","130206835","07/03/2018","Street Lighting","St Lighting Ext Recharges","R4007"
"Wolverhampton City Council","http://opendatacommunities.org/id/metropolitan-district-council/wolverhampton","707388","Smith Bros(Caer Conan)Wholesale Limited","549187","445.41","Materials","130208702","09/03/2018","Street Lighting","Street Lighting Maintenance","R4007"
"Wolverhampton City Council","http://opendatacommunities.org/id/metropolitan-district-council/wolverhampton","707388","Smith Bros(Caer Conan)Wholesale Limited","548128","1,174.10","Materials","130207839","26/03/2018","Street Lighting","Street Lighting Maintenance","R4007"
"Wolverhampton City Council","http://opendatacommunities.org/id/metropolitan-district-council/wolverhampton","707388","Smith Bros(Caer Conan)Wholesale Limited","543536","18,729.60","Materials","130204226","07/03/2018","Street Lighting","Street Lighting Maintenance","R4007"
"Wolverhampton City Council","http://opendatacommunities.org/id/metropolitan-district-council/wolverhampton","707388","Smith Bros(Caer Conan)Wholesale Limited","549186","305.32","Materials","130208701","09/03/2018","Street Lighting","Street Lighting Maintenance","R4007"
"Wolverhampton City Council","http://opendatacommunities.org/id/metropolitan-district-council/wolverhampton","707395","Snap-On Tools Ltd (Kettering N�Hants)","03201843928","79.05","Equipment - Purchase","190440542","23/03/2018","Fleet Services","Fleet Management","R4000"
"Wolverhampton City Council","http://opendatacommunities.org/id/metropolitan-district-council/wolverhampton","707399","Soccer Coaching 2000 Limited","6700a corr","-194.00","Services - Professional Fees","130208297","07/03/2018","Schools","Castlecroft Primary School","R4400"
"Wolverhampton City Council","http://opendatacommunities.org/id/metropolitan-district-council/wolverhampton","707418","Solihull M B C","P16852020180316","650.00","Grant Payments to Individuals","190437072","21/03/2018","Looked After Children","LAC Education Team (LACE)","R6402"
"Wolverhampton City Council","http://opendatacommunities.org/id/metropolitan-district-council/wolverhampton","707438","Ormiston SWB Academy","P16808120180313","650.00","Grant Payments to Individuals","190435204","14/03/2018","Looked After Children","LAC Education Team (LACE)","R6402"
"Wolverhampton City Council","http://opendatacommunities.org/id/metropolitan-district-council/wolverhampton","707438","Ormiston SWB Academy","P16808120180313","650.00","Grant Payments to Individuals","190435204","14/03/2018","Looked After Children","LAC Education Team (LACE)","R6402"
"Wolverhampton City Council","http://opendatacommunities.org/id/metropolitan-district-council/wolverhampton","707438","Ormiston SWB Academy","SEN Mainstream Top Ups Spring Term 2017/18 - Ormiston SWB Academy","6,620.54","Grant Payments","190439944","23/03/2018","Schools","High Needs Top Up -Mainstream Schools/Academies","R4700"
"Wolverhampton City Council","http://opendatacommunities.org/id/metropolitan-district-council/wolverhampton","707441","Southern Electric PLC","572648141-SSE0213","184.69","Electricity","190434337","14/03/2018","Specialist Support","MAST - Key Team","R2100"
"Wolverhampton City Council","http://opendatacommunities.org/id/metropolitan-district-council/wolverhampton","707456","Spacekraft Limited","96635","119.80","Equipment - Purchase","130206702","14/03/2018","Standards and Vulnerable Pupils","SEN Early Years Team","R4000"
"Wolverhampton City Council","http://opendatacommunities.org/id/metropolitan-district-council/wolverhampton","707456","Spacekraft Limited","96978","19.95","Equipment - Purchase","130208534","26/03/2018","Standards and Vulnerable Pupils","SEN Early Years Team","R4000"
"Wolverhampton City Council","http://opendatacommunities.org/id/metropolitan-district-council/wolverhampton","707456","Spacekraft Limited","96652","34.95","Equipment - Purchase","130206836","14/03/2018","Standards and Vulnerable Pupils","SEN Early Years Team","R4000"
"Wolverhampton City Council","http://opendatacommunities.org/id/metropolitan-district-council/wolverhampton","707456","Spacekraft Limited","96737","7,250.00","Equipment - Purchase","130207132","14/03/2018","Standards and Vulnerable Pupils","SEN Early Years Team","R4000"
"Wolverhampton City Council","http://opendatacommunities.org/id/metropolitan-district-council/wolverhampton","707462","Specialised Orthotic Services Limited","0000716140","942.48","Equipment - Purchase","130205699","02/03/2018","Independent Living Service","Independent Living Service","R4000"
"Wolverhampton City Council","http://opendatacommunities.org/id/metropolitan-district-council/wolverhampton","707462","Specialised Orthotic Services Limited","0000716140","100.00","Equipment - Purchase","130205699","02/03/2018","Independent Living Service","Independent Living Service","R4000"
"Wolverhampton City Council","http://opendatacommunities.org/id/metropolitan-district-council/wolverhampton","707462","Specialised Orthotic Services Limited","0000716140","35.00","Equipment - Purchase","130205699","02/03/2018","Independent Living Service","Independent Living Service","R4000"
"Wolverhampton City Council","http://opendatacommunities.org/id/metropolitan-district-council/wolverhampton","707463","Specialised Tools & Equipment Limited","087428","171.36","Equipment - Purchase","130210066","26/03/2018","Environmental Maintenance","Direct Schools","R4000"
"Wolverhampton City Council","http://opendatacommunities.org/id/metropolitan-district-council/wolverhampton","707463","Specialised Tools & Equipment Limited","087428","0.06","Equipment - Purchase","130210066","26/03/2018","Environmental Maintenance","Direct Schools","R4000"
"Wolverhampton City Council","http://opendatacommunities.org/id/metropolitan-district-council/wolverhampton","707465","Specialist Crafts Limited","SINHO00312321","17.30","Equipment - Purchase","130207840","07/03/2018","Adult Education","Creative Studies Delivery Area","R4000"
"Wolverhampton City Council","http://opendatacommunities.org/id/metropolitan-district-council/wolverhampton","707465","Specialist Crafts Limited","SINHO00312321","6.50","Equipment - Purchase","130207840","07/03/2018","Adult Education","Creative Studies Delivery Area","R4000"
"Wolverhampton City Council","http://opendatacommunities.org/id/metropolitan-district-council/wolverhampton","707465","Specialist Crafts Limited","SINHO00312321","12.66","Equipment - Purchase","130207840","07/03/2018","Adult Education","Creative Studies Delivery Area","R4000"
"Wolverhampton City Council","http://opendatacommunities.org/id/metropolitan-district-council/wolverhampton","707465","Specialist Crafts Limited","SINHO00312321","28.46","Equipment - Purchase","130207840","07/03/2018","Adult Education","Creative Studies Delivery Area","R4000"
"Wolverhampton City Council","http://opendatacommunities.org/id/metropolitan-district-council/wolverhampton","707465","Specialist Crafts Limited","SINHO00312321","14.99","Equipment - Purchase","130207840","07/03/2018","Adult Education","Creative Studies Delivery Area","R4000"
"Wolverhampton City Council","http://opendatacommunities.org/id/metropolitan-district-council/wolverhampton","707465","Specialist Crafts Limited","SINHO00312321","5.99","Comms - Postage","130207840","07/03/2018","Adult Education","Creative Studies Delivery Area","R4503"
"Wolverhampton City Council","http://opendatacommunities.org/id/metropolitan-district-council/wolverhampton","707465","Specialist Crafts Limited","SINHO00309265","374.89","Equipment - Purchase","130206703","07/03/2018","Adult Education","Creative Studies Delivery Area","R4000"
"Wolverhampton City Council","http://opendatacommunities.org/id/metropolitan-district-council/wolverhampton","707465","Specialist Crafts Limited","SINHO00309265","5.99","Equipment - Purchase","130206703","07/03/2018","Adult Education","Creative Studies Delivery Area","R4000"
"Wolverhampton City Council","http://opendatacommunities.org/id/metropolitan-district-council/wolverhampton","707465","Specialist Crafts Limited","SINHO00313155","28.57","Equipment - Purchase","130208409","16/03/2018","Adult Education","Creative Studies Delivery Area","R4000"
"Wolverhampton City Council","http://opendatacommunities.org/id/metropolitan-district-council/wolverhampton","707474","Speedy Asset Services Limited","7111184337","48.00","Equipment - Hire","130208872","14/03/2018","Highways Maintenance","Planned Highways Maintenance","R4001"
"Wolverhampton City Council","http://opendatacommunities.org/id/metropolitan-district-council/wolverhampton","707474","Speedy Asset Services Limited","7111184891","103.44","Equipment - Hire","130208876","14/03/2018","Highways Maintenance","Planned Highways Maintenance","R4001"
"Wolverhampton City Council","http://opendatacommunities.org/id/metropolitan-district-council/wolverhampton","707474","Speedy Asset Services Limited","7111183758","49.56","Equipment - Hire","130208865","14/03/2018","Highways Maintenance","Planned Highways Maintenance","R4001"
"Wolverhampton City Council","http://opendatacommunities.org/id/metropolitan-district-council/wolverhampton","707474","Speedy Asset Services Limited","7111185441","94.08","Equipment - Hire","130208885","14/03/2018","Highways Maintenance","Planned Highways Maintenance","R4001"
"Wolverhampton City Council","http://opendatacommunities.org/id/metropolitan-district-council/wolverhampton","707474","Speedy Asset Services Limited","7111184949","67.20","Equipment - Hire","130208877","23/03/2018","Highways Maintenance","Planned Highways Maintenance","R4001"
"Wolverhampton City Council","http://opendatacommunities.org/id/metropolitan-district-council/wolverhampton","707474","Speedy Asset Services Limited","7111183882","25.92","Equipment - Hire","130208866","14/03/2018","Highways Maintenance","Planned Highways Maintenance","R4001"
"Wolverhampton City Council","http://opendatacommunities.org/id/metropolitan-district-council/wolverhampton","707474","Speedy Asset Services Limited","7111185300","49.56","Equipment - Hire","130208882","14/03/2018","Highways Maintenance","Planned Highways Maintenance","R4001"
"Wolverhampton City Council","http://opendatacommunities.org/id/metropolitan-district-council/wolverhampton","707474","Speedy Asset Services Limited","7111185367","48.00","Equipment - Hire","130208883","14/03/2018","Highways Maintenance","Planned Highways Maintenance","R4001"
"Wolverhampton City Council","http://opendatacommunities.org/id/metropolitan-district-council/wolverhampton","707474","Speedy Asset Services Limited","7111184022","104.00","Equipment - Hire","130208868","14/03/2018","Highways Maintenance","Planned Highways Maintenance","R4001"
"Wolverhampton City Council","http://opendatacommunities.org/id/metropolitan-district-council/wolverhampton","707474","Speedy Asset Services Limited","7111183621","49.56","Equipment - Hire","130208864","14/03/2018","Highways Maintenance","Planned Highways Maintenance","R4001"
"Wolverhampton City Council","http://opendatacommunities.org/id/metropolitan-district-council/wolverhampton","707474","Speedy Asset Services Limited","7111184123","267.40","Equipment - Hire","130208870","16/03/2018","Highways Maintenance","Planned Highways Maintenance","R4001"
"Wolverhampton City Council","http://opendatacommunities.org/id/metropolitan-district-council/wolverhampton","707474","Speedy Asset Services Limited","7111233367","7.20","Equipment - Hire","130210318","23/03/2018","Highways Maintenance","Planned Highways Maintenance","R4001"
"Wolverhampton City Council","http://opendatacommunities.org/id/metropolitan-district-council/wolverhampton","707474","Speedy Asset Services Limited","7111184367","110.00","Equipment - Hire","130208873","14/03/2018","Highways Maintenance","Planned Highways Maintenance","R4001"
"Wolverhampton City Council","http://opendatacommunities.org/id/metropolitan-district-council/wolverhampton","707474","Speedy Asset Services Limited","7111184070","49.52","Equipment - Hire","130208869","14/03/2018","Highways Maintenance","Planned Highways Maintenance","R4001"
"Wolverhampton City Council","http://opendatacommunities.org/id/metropolitan-district-council/wolverhampton","707474","Speedy Asset Services Limited","7111185373","48.00","Equipment - Hire","130208884","14/03/2018","Highways Maintenance","Planned Highways Maintenance","R4001"
"Wolverhampton City Council","http://opendatacommunities.org/id/metropolitan-district-council/wolverhampton","707474","Speedy Asset Services Limited","7111185218","80.00","Equipment - Hire","130208880","14/03/2018","Highways Maintenance","Planned Highways Maintenance","R4001"
"Wolverhampton City Council","http://opendatacommunities.org/id/metropolitan-district-council/wolverhampton","707474","Speedy Asset Services Limited","7110974193","33.60","Equipment - Hire","130205714","14/03/2018","Highways Maintenance","Planned Highways Maintenance","R4001"
"Wolverhampton City Council","http://opendatacommunities.org/id/metropolitan-district-council/wolverhampton","707474","Speedy Asset Services Limited","7110995907","791.31","Materials","130210508","23/03/2018","Street Lighting","Street Lighting Maintenance","R4007"
"Wolverhampton City Council","http://opendatacommunities.org/id/metropolitan-district-council/wolverhampton","707474","Speedy Asset Services Limited","7111185007","93.10","Equipment - Hire","130208878","23/03/2018","Highways Maintenance","Planned Highways Maintenance","R4001"
"Wolverhampton City Council","http://opendatacommunities.org/id/metropolitan-district-council/wolverhampton","707474","Speedy Asset Services Limited","7111184610","97.56","Equipment - Hire","130208875","16/03/2018","Highways Maintenance","Planned Highways Maintenance","R4001"
"Wolverhampton City Council","http://opendatacommunities.org/id/metropolitan-district-council/wolverhampton","707474","Speedy Asset Services Limited","7111184529","103.44","Equipment - Hire","130208874","14/03/2018","Highways Maintenance","Planned Highways Maintenance","R4001"
"Wolverhampton City Council","http://opendatacommunities.org/id/metropolitan-district-council/wolverhampton","707474","Speedy Asset Services Limited","7111184239","48.00","Equipment - Hire","130208871","14/03/2018","Highways Maintenance","Planned Highways Maintenance","R4001"
"Wolverhampton City Council","http://opendatacommunities.org/id/metropolitan-district-council/wolverhampton","707474","Speedy Asset Services Limited","7111185224","80.00","Equipment - Hire","130208881","14/03/2018","Highways Maintenance","Planned Highways Maintenance","R4001"
"Wolverhampton City Council","http://opendatacommunities.org/id/metropolitan-district-council/wolverhampton","707474","Speedy Asset Services Limited","7111185160","234.00","Equipment - Hire","130208879","14/03/2018","Highways Maintenance","Planned Highways Maintenance","R4001"
"Wolverhampton City Council","http://opendatacommunities.org/id/metropolitan-district-council/wolverhampton","707474","Speedy Asset Services Limited","7111183962","49.52","Equipment - Hire","130208867","21/03/2018","Highways Maintenance","Patching","R4001"
"Wolverhampton City Council","http://opendatacommunities.org/id/metropolitan-district-council/wolverhampton","707474","Speedy Asset Services Limited","7111233239","14.63","Equipment - Hire","130210317","23/03/2018","Highways Maintenance","Planned Highways Maintenance","R4001"
"Wolverhampton City Council","http://opendatacommunities.org/id/metropolitan-district-council/wolverhampton","707474","Speedy Asset Services Limited","7111185496","97.52","Equipment - Hire","130208886","16/03/2018","Highways Maintenance","Planned Highways Maintenance","R4001"
"Wolverhampton City Council","http://opendatacommunities.org/id/metropolitan-district-council/wolverhampton","707499","Spurgeons","3408","1,502.00","TPP - Payments to voluntary groups","130207698","26/03/2018","Headstart","Headstart - Commissioned Activity","R5200"
"Wolverhampton City Council","http://opendatacommunities.org/id/metropolitan-district-council/wolverhampton","707499","Spurgeons","3414","8,083.33","TPP - Social Care Support Services","130208054","26/03/2018","Child Protection","Head of Service - CINCP","R5501"
"Wolverhampton City Council","http://opendatacommunities.org/id/metropolitan-district-council/wolverhampton","707517","St George�S Veterinary Group","WCC2018_018","1,218.76","Services - Professional Fees","130207841","07/03/2018","Public Protection","Pest Control & Animal Welfare","R4400"
"Wolverhampton City Council","http://opendatacommunities.org/id/metropolitan-district-council/wolverhampton","707517","St George�S Veterinary Group","340904492","32.71","Services - Professional Fees","130210067","21/03/2018","Public Protection","Pest Control & Animal Welfare","R4400"
"Wolverhampton City Council","http://opendatacommunities.org/id/metropolitan-district-council/wolverhampton","707517","St George�S Veterinary Group","WCC2018_02","482.71","Services - Professional Fees","130208410","09/03/2018","Public Protection","Pest Control & Animal Welfare","R4400"
"Wolverhampton City Council","http://opendatacommunities.org/id/metropolitan-district-council/wolverhampton","707542","St Peter�S Collegiate School","SEN Mainstream Top Ups Spring Term 2017/18 - St Peters Collegiate Academy","9,602.31","Grant Payments","190439949","23/03/2018","Schools","High Needs Top Up -Mainstream Schools/Academies","R4700"
"Wolverhampton City Council","http://opendatacommunities.org/id/metropolitan-district-council/wolverhampton","707542","St Peter�S Collegiate School","P16808120180313","650.00","Grant Payments to Individuals","190435204","14/03/2018","Looked After Children","LAC Education Team (LACE)","R6402"
"Wolverhampton City Council","http://opendatacommunities.org/id/metropolitan-district-council/wolverhampton","707542","St Peter�S Collegiate School","P16808120180313","650.00","Grant Payments to Individuals","190435204","14/03/2018","Looked After Children","LAC Education Team (LACE)","R6402"
"Wolverhampton City Council","http://opendatacommunities.org/id/metropolitan-district-council/wolverhampton","707542","St Peter�S Collegiate School","P16808120180313","650.00","Grant Payments to Individuals","190435204","14/03/2018","Looked After Children","LAC Education Team (LACE)","R6402"
"Wolverhampton City Council","http://opendatacommunities.org/id/metropolitan-district-council/wolverhampton","707542","St Peter�S Collegiate School","P16808120180313","650.00","Grant Payments to Individuals","190435204","14/03/2018","Looked After Children","LAC Education Team (LACE)","R6402"
"Wolverhampton City Council","http://opendatacommunities.org/id/metropolitan-district-council/wolverhampton","707564","Staffordshire County Council","1000005858","7,305.90","Client Transport - SEN","130209225","21/03/2018","School Planning & Resources","Special - Transport","R3043"
"Wolverhampton City Council","http://opendatacommunities.org/id/metropolitan-district-council/wolverhampton","707564","Staffordshire County Council","1000005859","1,707.30","Client Transport - SEN","130209226","21/03/2018","School Planning & Resources","Special - Transport","R3043"
"Wolverhampton City Council","http://opendatacommunities.org/id/metropolitan-district-council/wolverhampton","707564","Staffordshire County Council","1000005856","4,447.10","Client Transport - SEN","130209224","21/03/2018","School Planning & Resources","Special - Transport","R3043"
"Wolverhampton City Council","http://opendatacommunities.org/id/metropolitan-district-council/wolverhampton","707564","Staffordshire County Council","1000005049","3,810.33","TPP - Payments to Local Authorities","130209223","14/03/2018","Standards and Vulnerable Pupils","SEN Education OOC","R5100"
"Wolverhampton City Council","http://opendatacommunities.org/id/metropolitan-district-council/wolverhampton","707572","Stage Audio Services Limited","3919","340.00","Services - Professional Fees","130210319","26/03/2018","Visitor Economy","The Little Civic","R4400"
"Wolverhampton City Council","http://opendatacommunities.org/id/metropolitan-district-council/wolverhampton","707575","Stage Wolves Limited","5638","3,950.13","Services - Professional Fees","130208887","14/03/2018","Visitor Economy","Civic & Wulfrun Outhouse & Other Comercial Events","R4400"
"Wolverhampton City Council","http://opendatacommunities.org/id/metropolitan-district-council/wolverhampton","707579","Stanley Security Solutions Limited","75396867","1,587.04","Equipment - Purchase","190430149","02/03/2018","Fleet Services","Fleet Management","R4000"
"Wolverhampton City Council","http://opendatacommunities.org/id/metropolitan-district-council/wolverhampton","707580","Stannah Lifts Limited","17/0400/SAG","6,100.00","Grants paid out","190430197","02/03/2018","","Disabled Facilities Grants","C5000"
"Wolverhampton City Council","http://opendatacommunities.org/id/metropolitan-district-council/wolverhampton","707580","Stannah Lifts Limited","17/0753/SLM","608.41","Grants paid out","190437899","21/03/2018","","Disabled Facilities Grants","C5000"
"Wolverhampton City Council","http://opendatacommunities.org/id/metropolitan-district-council/wolverhampton","707580","Stannah Lifts Limited","17/0495/SAG","1,193.00","Grants paid out","190435198","14/03/2018","","Disabled Facilities Grants","C5000"
"Wolverhampton City Council","http://opendatacommunities.org/id/metropolitan-district-council/wolverhampton","707580","Stannah Lifts Limited","17/0560/SAG","4,493.70","Grants paid out","190440264","23/03/2018","","Disabled Facilities Grants","C5000"
"Wolverhampton City Council","http://opendatacommunities.org/id/metropolitan-district-council/wolverhampton","707580","Stannah Lifts Limited","17/0275/SAG","8,000.00","Grants paid out","190435889","16/03/2018","","Disabled Facilities Grants","C5000"
"Wolverhampton City Council","http://opendatacommunities.org/id/metropolitan-district-council/wolverhampton","707580","Stannah Lifts Limited","17/0719/SLM","103.74","Grants paid out","190437893","21/03/2018","","Disabled Facilities Grants","C5000"
"Wolverhampton City Council","http://opendatacommunities.org/id/metropolitan-district-council/wolverhampton","707580","Stannah Lifts Limited","17/0463/SAG","4,993.00","Grants paid out","190435193","14/03/2018","","Disabled Facilities Grants","C5000"
"Wolverhampton City Council","http://opendatacommunities.org/id/metropolitan-district-council/wolverhampton","707580","Stannah Lifts Limited","17/0505/SAG","3,109.00","Grants paid out","190440263","23/03/2018","","Disabled Facilities Grants","C5000"
"Wolverhampton City Council","http://opendatacommunities.org/id/metropolitan-district-council/wolverhampton","707580","Stannah Lifts Limited","17/0587/SAG","2,943.00","Grants paid out","190435894","16/03/2018","","Disabled Facilities Grants","C5000"
"Wolverhampton City Council","http://opendatacommunities.org/id/metropolitan-district-council/wolverhampton","707580","Stannah Lifts Limited","17/0706/SLM","172.18","Grants paid out","190430196","02/03/2018","","Disabled Facilities Grants","C5000"
"Wolverhampton City Council","http://opendatacommunities.org/id/metropolitan-district-council/wolverhampton","707580","Stannah Lifts Limited","16/0564/SAG","5,540.00","Grants paid out","190437900","21/03/2018","","Disabled Facilities Grants","C5000"
"Wolverhampton City Council","http://opendatacommunities.org/id/metropolitan-district-council/wolverhampton","707580","Stannah Lifts Limited","17/0537/SAG","3,058.00","Grants paid out","190435892","16/03/2018","","Disabled Facilities Grants","C5000"
"Wolverhampton City Council","http://opendatacommunities.org/id/metropolitan-district-council/wolverhampton","707580","Stannah Lifts Limited","17/0603/SAG","3,458.00","Grants paid out","190440265","23/03/2018","","Disabled Facilities Grants","C5000"
"Wolverhampton City Council","http://opendatacommunities.org/id/metropolitan-district-council/wolverhampton","707580","Stannah Lifts Limited","17/0531/SAG","795.00","Grants paid out","190440273","23/03/2018","","Disabled Facilities Grants","C5000"
"Wolverhampton City Council","http://opendatacommunities.org/id/metropolitan-district-council/wolverhampton","707580","Stannah Lifts Limited","17/0190/SLM","103.74","Grants paid out","190430193","02/03/2018","","Disabled Facilities Grants","C5000"
"Wolverhampton City Council","http://opendatacommunities.org/id/metropolitan-district-council/wolverhampton","707580","Stannah Lifts Limited","17/0453/SAG","2,779.00","Grants paid out","190435200","14/03/2018","","Disabled Facilities Grants","C5000"
"Wolverhampton City Council","http://opendatacommunities.org/id/metropolitan-district-council/wolverhampton","707580","Stannah Lifts Limited","17/0600/SAG","3,441.00","Grants paid out","190435890","16/03/2018","","Disabled Facilities Grants","C5000"
"Wolverhampton City Council","http://opendatacommunities.org/id/metropolitan-district-council/wolverhampton","707580","Stannah Lifts Limited","17/0449/SAG","5,163.00","Grants paid out","190435893","16/03/2018","","Disabled Facilities Grants","C5000"
"Wolverhampton City Council","http://opendatacommunities.org/id/metropolitan-district-council/wolverhampton","707580","Stannah Lifts Limited","17/0563/SAG","5,194.80","Grants paid out","190440266","23/03/2018","","Disabled Facilities Grants","C5000"
"Wolverhampton City Council","http://opendatacommunities.org/id/metropolitan-district-council/wolverhampton","707580","Stannah Lifts Limited","17/0452/SAG","3,058.00","Grants paid out","190430195","02/03/2018","","Disabled Facilities Grants","C5000"
"Wolverhampton City Council","http://opendatacommunities.org/id/metropolitan-district-council/wolverhampton","707580","Stannah Lifts Limited","17/0704/SLM","142.18","Grants paid out","190430191","02/03/2018","","Disabled Facilities Grants","C5000"
"Wolverhampton City Council","http://opendatacommunities.org/id/metropolitan-district-council/wolverhampton","707581","Stannah Limited/Stannah Lift Services","s085081653","50.00","Construction and Conversion","130206210","07/03/2018","","Adaptations for People with Disabilites","C1100"
"Wolverhampton City Council","http://opendatacommunities.org/id/metropolitan-district-council/wolverhampton","707581","Stannah Limited/Stannah Lift Services","s085082819","100.00","Construction and Conversion","130208055","21/03/2018","","Adaptations for People with Disabilites","C1100"
"Wolverhampton City Council","http://opendatacommunities.org/id/metropolitan-district-council/wolverhampton","707581","Stannah Limited/Stannah Lift Services","s085082105","100.00","Construction and Conversion","130206365","14/03/2018","","Adaptations for People with Disabilites","C1100"
"Wolverhampton City Council","http://opendatacommunities.org/id/metropolitan-district-council/wolverhampton","707581","Stannah Limited/Stannah Lift Services","s085081643","100.00","Construction and Conversion","130206209","07/03/2018","","Adaptations for People with Disabilites","C1100"
"Wolverhampton City Council","http://opendatacommunities.org/id/metropolitan-district-council/wolverhampton","707581","Stannah Limited/Stannah Lift Services","s085081943","1,893.00","Construction and Conversion","130206364","09/03/2018","","Adaptations for People with Disabilites","C1100"
"Wolverhampton City Council","http://opendatacommunities.org/id/metropolitan-district-council/wolverhampton","707581","Stannah Limited/Stannah Lift Services","s085082934","50.00","Construction and Conversion","130208056","23/03/2018","","Adaptations for People with Disabilites","C1100"
"Wolverhampton City Council","http://opendatacommunities.org/id/metropolitan-district-council/wolverhampton","707581","Stannah Limited/Stannah Lift Services","s085081863","100.00","Construction and Conversion","130206211","07/03/2018","","Adaptations for People with Disabilites","C1100"
"Wolverhampton City Council","http://opendatacommunities.org/id/metropolitan-district-council/wolverhampton","707624","Stone Group Limited/Stone Computers Ltd","1082954","1,276.80","Equipment - Purchase","130207842","07/03/2018","Standards and Vulnerable Pupils","SEN Sensory Inclusion","R4000"
"Wolverhampton City Council","http://opendatacommunities.org/id/metropolitan-district-council/wolverhampton","707625","Stone Hardy Limited","1227211","57.87","Equipment - Purchase","190430123","02/03/2018","Fleet Services","Fleet Management","R4000"
"Wolverhampton City Council","http://opendatacommunities.org/id/metropolitan-district-council/wolverhampton","707625","Stone Hardy Limited","1228229","35.43","Equipment - Purchase","190430124","02/03/2018","Fleet Services","Fleet Management","R4000"
"Wolverhampton City Council","http://opendatacommunities.org/id/metropolitan-district-council/wolverhampton","707627","Stoneleigh Consultancy Limited","46496","220.00","Computing - Purchase of Hardware","130207281","21/03/2018","ICTS","Strategic ICTS (ICT Service Budget)","R4530"
"Wolverhampton City Council","http://opendatacommunities.org/id/metropolitan-district-council/wolverhampton","707627","Stoneleigh Consultancy Limited","46401","3,396.33","Computing - Purchase of Hardware","130207277","14/03/2018","Early Intervention","HOS Early Intervention","R4530"
"Wolverhampton City Council","http://opendatacommunities.org/id/metropolitan-district-council/wolverhampton","707644","Streetmaster (South Wales)Limited","4172","595.00","Materials for resale","130209608","23/03/2018","Bereavement Services","Cemeteries","R4008"
"Wolverhampton City Council","http://opendatacommunities.org/id/metropolitan-district-council/wolverhampton","707644","Streetmaster (South Wales)Limited","4569","595.00","Materials for resale","130210325","23/03/2018","Bereavement Services","Cemeteries","R4008"
"Wolverhampton City Council","http://opendatacommunities.org/id/metropolitan-district-council/wolverhampton","707644","Streetmaster (South Wales)Limited","4171","595.00","Materials for resale","130210324","23/03/2018","Bereavement Services","Cemeteries","R4008"
"Wolverhampton City Council","http://opendatacommunities.org/id/metropolitan-district-council/wolverhampton","707644","Streetmaster (South Wales)Limited","4168","595.00","Materials for resale","130210323","23/03/2018","Bereavement Services","Cemeteries","R4008"
"Wolverhampton City Council","http://opendatacommunities.org/id/metropolitan-district-council/wolverhampton","707670","Summerhill School","P16852020180316","650.00","Grant Payments to Individuals","190437072","21/03/2018","Looked After Children","LAC Education Team (LACE)","R6402"
"Wolverhampton City Council","http://opendatacommunities.org/id/metropolitan-district-council/wolverhampton","707670","Summerhill School","P16852020180316","650.00","Grant Payments to Individuals","190437072","21/03/2018","Looked After Children","LAC Education Team (LACE)","R6402"
"Wolverhampton City Council","http://opendatacommunities.org/id/metropolitan-district-council/wolverhampton","707670","Summerhill School","P16852020180316","650.00","Grant Payments to Individuals","190437072","21/03/2018","Looked After Children","LAC Education Team (LACE)","R6402"
"Wolverhampton City Council","http://opendatacommunities.org/id/metropolitan-district-council/wolverhampton","707670","Summerhill School","P16852020180316","650.00","Grant Payments to Individuals","190437072","21/03/2018","Looked After Children","LAC Education Team (LACE)","R6402"
"Wolverhampton City Council","http://opendatacommunities.org/id/metropolitan-district-council/wolverhampton","707680","Sunfield Childrens Homes Limited","SIN000110","36,255.42","TPP - Independent Schools","130209773","26/03/2018","Standards and Vulnerable Pupils","SEN Education OOC","R5036"
"Wolverhampton City Council","http://opendatacommunities.org/id/metropolitan-district-council/wolverhampton","707682","Sunflowers Day Nursery Limited","EYPP Spring 2018","572.40","TPP - Private Nursery Education Funding","190441753","26/03/2018","Early Years","Early Years Pupil Premium","R5035"
"Wolverhampton City Council","http://opendatacommunities.org/id/metropolitan-district-council/wolverhampton","707682","Sunflowers Day Nursery Limited","NEF Spring 2018 INST 2","12,341.42","TPP - Private Nursery Education Funding","190439901","23/03/2018","Early Years","Early Years Universal Entitlement for 3 and 4 Year Olds","R5035"
"Wolverhampton City Council","http://opendatacommunities.org/id/metropolitan-district-council/wolverhampton","707682","Sunflowers Day Nursery Limited","TFT Spring 2018 Inst 2","4,385.88","TPP - Private Nursery Education Funding","190439893","23/03/2018","Early Years","Early Years Entitlement Funding for Disadvantaged 2 Year Olds","R5035"
"Wolverhampton City Council","http://opendatacommunities.org/id/metropolitan-district-council/wolverhampton","707685","Sunnyside Kennels","SS1047","2,132.45","Services - Professional Fees","130207546","14/03/2018","Public Protection","Pest Control & Animal Welfare","R4400"
"Wolverhampton City Council","http://opendatacommunities.org/id/metropolitan-district-council/wolverhampton","707686","Sunrise Medical Limited","18UI062973","700.00","Equipment - Purchase","130207133","21/03/2018","Independent Living Service","Independent Living Service","R4000"
"Wolverhampton City Council","http://opendatacommunities.org/id/metropolitan-district-council/wolverhampton","707686","Sunrise Medical Limited","18UI062973","280.00","Equipment - Purchase","130207133","21/03/2018","Independent Living Service","Independent Living Service","R4000"
"Wolverhampton City Council","http://opendatacommunities.org/id/metropolitan-district-council/wolverhampton","707686","Sunrise Medical Limited","18UI062677","400.00","Equipment - Purchase","130206958","21/03/2018","Independent Living Service","Independent Living Service","R4000"
"Wolverhampton City Council","http://opendatacommunities.org/id/metropolitan-district-council/wolverhampton","707686","Sunrise Medical Limited","18UI062345","400.00","Equipment - Purchase","130206957","16/03/2018","Independent Living Service","Independent Living Service","R4000"
"Wolverhampton City Council","http://opendatacommunities.org/id/metropolitan-district-council/wolverhampton","707699","Supra UK Limited TA The Keysafe Company","82014","1,875.00","Adaptations","130204613","02/03/2018","Independent Living Service","Independent Living Service","R4411"
"Wolverhampton City Council","http://opendatacommunities.org/id/metropolitan-district-council/wolverhampton","707700","Supreme Hygiene","TH/0528980","902.20","Cleaning Supplies and Materials","130208411","14/03/2018","Early Intervention","EIP Locality 1 - Eastfields","R2705"
"Wolverhampton City Council","http://opendatacommunities.org/id/metropolitan-district-council/wolverhampton","707722","Swift Maintnce Services (1973) Limited","24308","93.60","Equipment - Catering","130200034","21/03/2018","Learning Disability Provider","Duke Street Bungalows","R4010"
"Wolverhampton City Council","http://opendatacommunities.org/id/metropolitan-district-council/wolverhampton","707722","Swift Maintnce Services (1973) Limited","25351","752.00","Equipment - R & M","130208537","14/03/2018","Catering","Education Catering - General Overheads","R4003"
"Wolverhampton City Council","http://opendatacommunities.org/id/metropolitan-district-council/wolverhampton","707722","Swift Maintnce Services (1973) Limited","25352","1,365.50","Equipment - R & M","130208538","14/03/2018","Catering","Education Catering - General Overheads","R4003"
"Wolverhampton City Council","http://opendatacommunities.org/id/metropolitan-district-council/wolverhampton","707722","Swift Maintnce Services (1973) Limited","25222","3,395.84","Equipment - R & M","130207847","16/03/2018","Cleaning","Cleaning of Buildings - General","R4003"
"Wolverhampton City Council","http://opendatacommunities.org/id/metropolitan-district-council/wolverhampton","707722","Swift Maintnce Services (1973) Limited","25277","61.25","Equipment - R & M","130208220","16/03/2018","Learning Disability Provider","Duke Street Bungalows","R4003"
"Wolverhampton City Council","http://opendatacommunities.org/id/metropolitan-district-council/wolverhampton","707722","Swift Maintnce Services (1973) Limited","24948","7,652.44","Equipment - R & M","130209056","14/03/2018","Catering","Education Catering - General Overheads","R4003"
"Wolverhampton City Council","http://opendatacommunities.org/id/metropolitan-district-council/wolverhampton","707722","Swift Maintnce Services (1973) Limited","25139","150.00","Equipment - R & M","130206839","07/03/2018","Older People Provider Services","Bradley Lodge Resource Centre","R4003"
"Wolverhampton City Council","http://opendatacommunities.org/id/metropolitan-district-council/wolverhampton","707722","Swift Maintnce Services (1973) Limited","24439","7,006.00","Equipment - Catering","130200557","02/03/2018","School Planning & Resources","Other Support Services","R4010"
"Wolverhampton City Council","http://opendatacommunities.org/id/metropolitan-district-council/wolverhampton","707722","Swift Maintnce Services (1973) Limited","25430","50.25","Equipment - R & M","130209611","21/03/2018","Independent Living Service","Independent Living Service","R4003"
"Wolverhampton City Council","http://opendatacommunities.org/id/metropolitan-district-council/wolverhampton","707722","Swift Maintnce Services (1973) Limited","25278","47.00","Equipment - R & M","130208221","21/03/2018","Learning Disability Provider","Duke Street Bungalows","R4003"
"Wolverhampton City Council","http://opendatacommunities.org/id/metropolitan-district-council/wolverhampton","707722","Swift Maintnce Services (1973) Limited","25275","532.59","Equipment - Catering","130208218","14/03/2018","Visitor Economy","Catering Overhead Account","R4010"
"Wolverhampton City Council","http://opendatacommunities.org/id/metropolitan-district-council/wolverhampton","707722","Swift Maintnce Services (1973) Limited","25291","39.88","Equipment - Catering","130208222","16/03/2018","Learning Disability Provider","Duke Street Bungalows","R4010"
"Wolverhampton City Council","http://opendatacommunities.org/id/metropolitan-district-council/wolverhampton","707722","Swift Maintnce Services (1973) Limited","24950","511.50","Equipment - R & M","130209058","14/03/2018","Catering","Education Catering - General Overheads","R4003"
"Wolverhampton City Council","http://opendatacommunities.org/id/metropolitan-district-council/wolverhampton","707722","Swift Maintnce Services (1973) Limited","25262","71.93","Equipment - R & M","130208216","14/03/2018","Leisure Services","WV Active Catering","R4003"
"Wolverhampton City Council","http://opendatacommunities.org/id/metropolitan-district-council/wolverhampton","707722","Swift Maintnce Services (1973) Limited","24833","309.86","Equipment - R & M","130204231","07/03/2018","Learning Disability Provider","Duke Street Bungalows","R4003"
"Wolverhampton City Council","http://opendatacommunities.org/id/metropolitan-district-council/wolverhampton","707722","Swift Maintnce Services (1973) Limited","25138","80.00","Equipment - Catering","130206838","07/03/2018","Older People Provider Services","Bradley Lodge Resource Centre","R4010"
"Wolverhampton City Council","http://opendatacommunities.org/id/metropolitan-district-council/wolverhampton","707722","Swift Maintnce Services (1973) Limited","25230","4,354.40","Equipment - Catering","130207848","07/03/2018","Corporate Asset Management","Future Space Decant Area","R4010"
"Wolverhampton City Council","http://opendatacommunities.org/id/metropolitan-district-council/wolverhampton","707722","Swift Maintnce Services (1973) Limited","24195","124.10","Equipment - Catering","130198065","21/03/2018","Learning Disability Provider","Duke Street Bungalows","R4010"
"Wolverhampton City Council","http://opendatacommunities.org/id/metropolitan-district-council/wolverhampton","707722","Swift Maintnce Services (1973) Limited","25150","47.00","Equipment - R & M","130206840","02/03/2018","Learning Disability Provider","Duke Street Bungalows","R4003"
"Wolverhampton City Council","http://opendatacommunities.org/id/metropolitan-district-council/wolverhampton","707722","Swift Maintnce Services (1973) Limited","25480","129.23","Equipment - Catering","130210509","26/03/2018","Visitor Economy","Bantock - Tea Rooms","R4010"
"Wolverhampton City Council","http://opendatacommunities.org/id/metropolitan-district-council/wolverhampton","707722","Swift Maintnce Services (1973) Limited","24270","139.63","Equipment - Catering","130199316","21/03/2018","Learning Disability Provider","Duke Street Bungalows","R4010"
"Wolverhampton City Council","http://opendatacommunities.org/id/metropolitan-district-council/wolverhampton","707722","Swift Maintnce Services (1973) Limited","25276","52.85","Equipment - R & M","130208219","14/03/2018","Older People Provider Services","Bradley Lodge Resource Centre","R4003"
"Wolverhampton City Council","http://opendatacommunities.org/id/metropolitan-district-council/wolverhampton","707722","Swift Maintnce Services (1973) Limited","25274","72.23","Equipment - R & M","130208217","16/03/2018","Learning Disability Provider","Duke Street Bungalows","R4003"
"Wolverhampton City Council","http://opendatacommunities.org/id/metropolitan-district-council/wolverhampton","707722","Swift Maintnce Services (1973) Limited","25218","2,905.63","Equipment - Catering","130207845","16/03/2018","Catering","Education Catering - General Overheads","R4010"
"Wolverhampton City Council","http://opendatacommunities.org/id/metropolitan-district-council/wolverhampton","707722","Swift Maintnce Services (1973) Limited","24949","235.00","Equipment - R & M","130209057","14/03/2018","Catering","Education Catering - General Overheads","R4003"
"Wolverhampton City Council","http://opendatacommunities.org/id/metropolitan-district-council/wolverhampton","707722","Swift Maintnce Services (1973) Limited","25212","226.82","Equipment - R & M","130207844","14/03/2018","Leisure Services","Bert Williams Leisure Centre Caf�","R4003"
"Wolverhampton City Council","http://opendatacommunities.org/id/metropolitan-district-council/wolverhampton","707722","Swift Maintnce Services (1973) Limited","25391","223.00","Equipment - R & M","130208889","14/03/2018","Leisure Services","Bert Williams Leisure Centre Caf�","R4003"
"Wolverhampton City Council","http://opendatacommunities.org/id/metropolitan-district-council/wolverhampton","707722","Swift Maintnce Services (1973) Limited","25422","164.85","Equipment - R & M","130209609","23/03/2018","Learning Disability Provider","Duke Street Bungalows","R4003"
"Wolverhampton City Council","http://opendatacommunities.org/id/metropolitan-district-council/wolverhampton","707722","Swift Maintnce Services (1973) Limited","25428","205.67","Equipment - R & M","130209610","21/03/2018","Older People Provider Services","Bradley Lodge Resource Centre","R4003"
"Wolverhampton City Council","http://opendatacommunities.org/id/metropolitan-district-council/wolverhampton","707722","Swift Maintnce Services (1973) Limited","22915","84.18","Equipment - R & M","130209227","16/03/2018","Leisure Services","WV Active Catering","R4003"
"Wolverhampton City Council","http://opendatacommunities.org/id/metropolitan-district-council/wolverhampton","707722","Swift Maintnce Services (1973) Limited","24951","370.00","Equipment - R & M","130209059","14/03/2018","Catering","Education Catering - General Overheads","R4003"
"Wolverhampton City Council","http://opendatacommunities.org/id/metropolitan-district-council/wolverhampton","707722","Swift Maintnce Services (1973) Limited","25322","3,967.20","Equipment - Purchase","130208535","14/03/2018","Older People Provider Services","Older People Provider Management","R4000"
"Wolverhampton City Council","http://opendatacommunities.org/id/metropolitan-district-council/wolverhampton","707722","Swift Maintnce Services (1973) Limited","25350","12,943.40","Equipment - R & M","130208536","14/03/2018","Catering","Education Catering - General Overheads","R4003"
"Wolverhampton City Council","http://opendatacommunities.org/id/metropolitan-district-council/wolverhampton","707722","Swift Maintnce Services (1973) Limited","25353","980.50","Equipment - R & M","130208539","14/03/2018","Catering","Education Catering - General Overheads","R4003"
"Wolverhampton City Council","http://opendatacommunities.org/id/metropolitan-district-council/wolverhampton","707722","Swift Maintnce Services (1973) Limited","22908","61.25","Equipment - R & M","130210068","23/03/2018","Catering","Education Catering - General Overheads","R4003"
"Wolverhampton City Council","http://opendatacommunities.org/id/metropolitan-district-council/wolverhampton","707722","Swift Maintnce Services (1973) Limited","25221","314.22","Equipment - R & M","130207846","07/03/2018","Leisure Services","Bert Williams Leisure Centre Caf�","R4003"
"Wolverhampton City Council","http://opendatacommunities.org/id/metropolitan-district-council/wolverhampton","707722","Swift Maintnce Services (1973) Limited","25221","79.35","Equipment - R & M","130207846","07/03/2018","Leisure Services","Bert Williams Leisure Centre Caf�","R4003"
"Wolverhampton City Council","http://opendatacommunities.org/id/metropolitan-district-council/wolverhampton","707722","Swift Maintnce Services (1973) Limited","25211","369.60","Equipment - R & M","130207843","07/03/2018","Leisure Services","WV Active Catering","R4003"
"Wolverhampton City Council","http://opendatacommunities.org/id/metropolitan-district-council/wolverhampton","707726","Swimrite Supplies Limited","392221","940.35","Materials for resale","130208224","26/03/2018","Leisure Services","Central Baths","R4008"
"Wolverhampton City Council","http://opendatacommunities.org/id/metropolitan-district-council/wolverhampton","707731","Switchshop Limited","127475","211.12","Computing - Purchase of Hardware","130207547","02/03/2018","ICTS","Strategic ICTS (ICT Service Budget)","R4530"
"Wolverhampton City Council","http://opendatacommunities.org/id/metropolitan-district-council/wolverhampton","707741","Systems Engineering & Assessment Limited","SIN030440","663.71","Equipment - Purchase","130208225","26/03/2018","Parking Services","Parking Enforcement","R4000"
"Wolverhampton City Council","http://opendatacommunities.org/id/metropolitan-district-council/wolverhampton","707751","T H White Limited","E82153","43.36","Equipment - Purchase","190439650","23/03/2018","Fleet Services","Fleet Management","R4000"
"Wolverhampton City Council","http://opendatacommunities.org/id/metropolitan-district-council/wolverhampton","707751","T H White Limited","E82153","38.77","Equipment - Purchase","190439650","23/03/2018","Fleet Services","Fleet Management","R4000"
"Wolverhampton City Council","http://opendatacommunities.org/id/metropolitan-district-council/wolverhampton","707751","T H White Limited","E81941","1.36","Equipment - Purchase","190437044","21/03/2018","Fleet Services","Fleet Management","R4000"
"Wolverhampton City Council","http://opendatacommunities.org/id/metropolitan-district-council/wolverhampton","707751","T H White Limited","E81941","125.82","Equipment - Purchase","190437044","21/03/2018","Fleet Services","Fleet Management","R4000"
"Wolverhampton City Council","http://opendatacommunities.org/id/metropolitan-district-council/wolverhampton","707751","T H White Limited","E81941","247.58","Equipment - Purchase","190437044","21/03/2018","Fleet Services","Fleet Management","R4000"
"Wolverhampton City Council","http://opendatacommunities.org/id/metropolitan-district-council/wolverhampton","707751","T H White Limited","E82047","27.34","Equipment - Purchase","190430174","02/03/2018","Fleet Services","Fleet Management","R4000"
"Wolverhampton City Council","http://opendatacommunities.org/id/metropolitan-district-council/wolverhampton","707751","T H White Limited","E82047","12.10","Equipment - Purchase","190430174","02/03/2018","Fleet Services","Fleet Management","R4000"
"Wolverhampton City Council","http://opendatacommunities.org/id/metropolitan-district-council/wolverhampton","707751","T H White Limited","E82047","40.24","Equipment - Purchase","190430174","02/03/2018","Fleet Services","Fleet Management","R4000"
"Wolverhampton City Council","http://opendatacommunities.org/id/metropolitan-district-council/wolverhampton","707751","T H White Limited","E82047","22.66","Equipment - Purchase","190430174","02/03/2018","Fleet Services","Fleet Management","R4000"
"Wolverhampton City Council","http://opendatacommunities.org/id/metropolitan-district-council/wolverhampton","707751","T H White Limited","E82047","7.00","Equipment - Purchase","190430174","02/03/2018","Fleet Services","Fleet Management","R4000"
"Wolverhampton City Council","http://opendatacommunities.org/id/metropolitan-district-council/wolverhampton","707751","T H White Limited","E81987","12.96","Equipment - Purchase","190437045","21/03/2018","Fleet Services","Fleet Management","R4000"
"Wolverhampton City Council","http://opendatacommunities.org/id/metropolitan-district-council/wolverhampton","707751","T H White Limited","E81987","0.74","Equipment - Purchase","190437045","21/03/2018","Fleet Services","Fleet Management","R4000"
"Wolverhampton City Council","http://opendatacommunities.org/id/metropolitan-district-council/wolverhampton","707751","T H White Limited","E81987","34.95","Equipment - Purchase","190437045","21/03/2018","Fleet Services","Fleet Management","R4000"
"Wolverhampton City Council","http://opendatacommunities.org/id/metropolitan-district-council/wolverhampton","707751","T H White Limited","E81987","2.22","Equipment - Purchase","190437045","21/03/2018","Fleet Services","Fleet Management","R4000"
"Wolverhampton City Council","http://opendatacommunities.org/id/metropolitan-district-council/wolverhampton","707751","T H White Limited","E81987","0.85","Equipment - Purchase","190437045","21/03/2018","Fleet Services","Fleet Management","R4000"
"Wolverhampton City Council","http://opendatacommunities.org/id/metropolitan-district-council/wolverhampton","707751","T H White Limited","E81987","83.50","Equipment - Purchase","190437045","21/03/2018","Fleet Services","Fleet Management","R4000"
"Wolverhampton City Council","http://opendatacommunities.org/id/metropolitan-district-council/wolverhampton","707751","T H White Limited","E81987","84.44","Equipment - Purchase","190437045","21/03/2018","Fleet Services","Fleet Management","R4000"
"Wolverhampton City Council","http://opendatacommunities.org/id/metropolitan-district-council/wolverhampton","707751","T H White Limited","E81987","14.15","Equipment - Purchase","190437045","21/03/2018","Fleet Services","Fleet Management","R4000"
"Wolverhampton City Council","http://opendatacommunities.org/id/metropolitan-district-council/wolverhampton","707751","T H White Limited","E81987","7.84","Equipment - Purchase","190437045","21/03/2018","Fleet Services","Fleet Management","R4000"
"Wolverhampton City Council","http://opendatacommunities.org/id/metropolitan-district-council/wolverhampton","707751","T H White Limited","E82354","53.84","Equipment - Purchase","190441073","26/03/2018","Fleet Services","Fleet Management","R4000"
"Wolverhampton City Council","http://opendatacommunities.org/id/metropolitan-district-council/wolverhampton","707751","T H White Limited","E82354","11.34","Equipment - Purchase","190441073","26/03/2018","Fleet Services","Fleet Management","R4000"
"Wolverhampton City Council","http://opendatacommunities.org/id/metropolitan-district-council/wolverhampton","707751","T H White Limited","E82354","17.84","Equipment - Purchase","190441073","26/03/2018","Fleet Services","Fleet Management","R4000"
"Wolverhampton City Council","http://opendatacommunities.org/id/metropolitan-district-council/wolverhampton","707751","T H White Limited","E82259","0.57","Equipment - Purchase","190440596","23/03/2018","Fleet Services","Fleet Management","R4000"
"Wolverhampton City Council","http://opendatacommunities.org/id/metropolitan-district-council/wolverhampton","707751","T H White Limited","E82163","22.92","Equipment - Purchase","190439651","23/03/2018","Fleet Services","Fleet Management","R4000"
"Wolverhampton City Council","http://opendatacommunities.org/id/metropolitan-district-council/wolverhampton","707798","The Children�s Society","ARSERV/00000268","11,054.69","TPP - Social Care Support Services","130205884","14/03/2018","Looked After Children","Head of Service - LAC","R5501"
"Wolverhampton City Council","http://opendatacommunities.org/id/metropolitan-district-council/wolverhampton","707798","The Children�s Society","ARSERV/00000327","11,454.43","TPP - Social Care Support Services","130205723","14/03/2018","Looked After Children","Head of Service - LAC","R5501"
"Wolverhampton City Council","http://opendatacommunities.org/id/metropolitan-district-council/wolverhampton","707824","Technogym UK Limited","18000961","114.93","R&M - Departmental planned (internal)","130206704","14/03/2018","Strategic Organisation Development","Blakenhall Community & Healthy Living Centre","R2000"
"Wolverhampton City Council","http://opendatacommunities.org/id/metropolitan-district-council/wolverhampton","707837","Telent:Ttsl Traffic Signals/Technology UK","1108121","572.23","TPP - Maintenance on Principal Roads","130207548","09/03/2018","Operation & Maintenance of Existing Network","Traffic Signals","R5700"
"Wolverhampton City Council","http://opendatacommunities.org/id/metropolitan-district-council/wolverhampton","707837","Telent:Ttsl Traffic Signals/Technology UK","1108756","1,162.54","TPP - Rechargeable Works Costs","130205885","07/03/2018","Operation & Maintenance of Existing Network","Walsall Recovery Costs","R5730"
"Wolverhampton City Council","http://opendatacommunities.org/id/metropolitan-district-council/wolverhampton","707837","Telent:Ttsl Traffic Signals/Technology UK","1108852","3,015.69","Construction and Conversion","130206213","09/03/2018","","Transport Structual Maintenance","C1100"
"Wolverhampton City Council","http://opendatacommunities.org/id/metropolitan-district-council/wolverhampton","707837","Telent:Ttsl Traffic Signals/Technology UK","136577","19,110.00","Computing - Maint Agreements","130209897","21/03/2018","Operation & Maintenance of Existing Network","UTC Wolverhampton","R4534"
"Wolverhampton City Council","http://opendatacommunities.org/id/metropolitan-district-council/wolverhampton","707840","Telewest Communications/Virgin Media","046213701/001/01 18","7.50","Comms - Telephone Call charges","130208229","07/03/2018","Independent Living Service","Telecare","R4505"
"Wolverhampton City Council","http://opendatacommunities.org/id/metropolitan-district-council/wolverhampton","707840","Telewest Communications/Virgin Media","033674001/001/0218","5.75","Comms - Telephone Rental","190435776","16/03/2018","ICTS","Strategic ICTS (ICT Service Budget)","R4504"
"Wolverhampton City Council","http://opendatacommunities.org/id/metropolitan-district-council/wolverhampton","707840","Telewest Communications/Virgin Media","033674001/001/1217","5.75","Comms - Telephone Rental","190435777","16/03/2018","ICTS","Strategic ICTS (ICT Service Budget)","R4504"
"Wolverhampton City Council","http://opendatacommunities.org/id/metropolitan-district-council/wolverhampton","707840","Telewest Communications/Virgin Media","033674001/001/0717","6.00","Comms - Telephone Rental","190435782","16/03/2018","ICTS","Strategic ICTS (ICT Service Budget)","R4504"
"Wolverhampton City Council","http://opendatacommunities.org/id/metropolitan-district-council/wolverhampton","707840","Telewest Communications/Virgin Media","033674001/001/0317","6.00","Comms - Telephone Rental","190435786","16/03/2018","ICTS","Strategic ICTS (ICT Service Budget)","R4504"
"Wolverhampton City Council","http://opendatacommunities.org/id/metropolitan-district-council/wolverhampton","707840","Telewest Communications/Virgin Media","033674201/001/1217","20.46","Comms - Telephone Rental","190435790","16/03/2018","ICTS","Strategic ICTS (ICT Service Budget)","R4504"
"Wolverhampton City Council","http://opendatacommunities.org/id/metropolitan-district-council/wolverhampton","707840","Telewest Communications/Virgin Media","033674201/001/0617","22.05","Comms - Telephone Rental","190435796","16/03/2018","ICTS","Strategic ICTS (ICT Service Budget)","R4504"
"Wolverhampton City Council","http://opendatacommunities.org/id/metropolitan-district-council/wolverhampton","707840","Telewest Communications/Virgin Media","035045301/001/1017","5.75","Comms - Telephone Rental","190435804","16/03/2018","ICTS","Strategic ICTS (ICT Service Budget)","R4504"
"Wolverhampton City Council","http://opendatacommunities.org/id/metropolitan-district-council/wolverhampton","707840","Telewest Communications/Virgin Media","035045301/001/0417","6.00","Comms - Telephone Rental","190435810","16/03/2018","ICTS","Strategic ICTS (ICT Service Budget)","R4504"
"Wolverhampton City Council","http://opendatacommunities.org/id/metropolitan-district-council/wolverhampton","707840","Telewest Communications/Virgin Media","035045301/001/0717","4.60","Comms - Telephone Rental","190435807","16/03/2018","ICTS","Strategic ICTS (ICT Service Budget)","R4504"
"Wolverhampton City Council","http://opendatacommunities.org/id/metropolitan-district-council/wolverhampton","707840","Telewest Communications/Virgin Media","035830701/001/0218","74.59","Comms - Telephone Rental","190435814","16/03/2018","ICTS","Strategic ICTS (ICT Service Budget)","R4504"
"Wolverhampton City Council","http://opendatacommunities.org/id/metropolitan-district-council/wolverhampton","707840","Telewest Communications/Virgin Media","036800401/013/1217","0.11","Comms - Telephone Rental","190435818","16/03/2018","ICTS","Strategic ICTS (ICT Service Budget)","R4504"
"Wolverhampton City Council","http://opendatacommunities.org/id/metropolitan-district-council/wolverhampton","707840","Telewest Communications/Virgin Media","036800401/013/0917","0.73","Comms - Telephone Rental","190435821","16/03/2018","ICTS","Strategic ICTS (ICT Service Budget)","R4504"
"Wolverhampton City Council","http://opendatacommunities.org/id/metropolitan-district-council/wolverhampton","707840","Telewest Communications/Virgin Media","046213601/001/0118","7.50","Comms - Telephone Call charges","130208711","14/03/2018","Independent Living Service","Telecare","R4505"
"Wolverhampton City Council","http://opendatacommunities.org/id/metropolitan-district-council/wolverhampton","707840","Telewest Communications/Virgin Media","039811201/001/0218","48.86","Computing - Internet","130209228","21/03/2018","Adult Education","Alan Garner Centre Building","R4537"
"Wolverhampton City Council","http://opendatacommunities.org/id/metropolitan-district-council/wolverhampton","707840","Telewest Communications/Virgin Media","039360602/001/0218","78.01","Comms - Telephone Rental","130207134","14/03/2018","Looked After Children","Head of Service - LAC","R4504"
"Wolverhampton City Council","http://opendatacommunities.org/id/metropolitan-district-council/wolverhampton","707840","Telewest Communications/Virgin Media","039360602/001/0218","-78.01","Comms - Telephone Rental","130207134","14/03/2018","Looked After Children","Head of Service - LAC","R4504"
"Wolverhampton City Council","http://opendatacommunities.org/id/metropolitan-district-council/wolverhampton","707840","Telewest Communications/Virgin Media","039360602/001/0218","40.00","Comms - Telephone Rental","130207134","14/03/2018","Looked After Children","Head of Service - LAC","R4504"
"Wolverhampton City Council","http://opendatacommunities.org/id/metropolitan-district-council/wolverhampton","707840","Telewest Communications/Virgin Media","039360602/001/0218","38.01","Comms - Telephone Rental","130207134","14/03/2018","Looked After Children","Head of Service - LAC","R4504"
"Wolverhampton City Council","http://opendatacommunities.org/id/metropolitan-district-council/wolverhampton","707840","Telewest Communications/Virgin Media","039186401/001/0218","25,589.62","Comms - Telephone Rental","190435774","16/03/2018","ICTS","Strategic ICTS (ICT Service Budget)","R4504"
"Wolverhampton City Council","http://opendatacommunities.org/id/metropolitan-district-council/wolverhampton","707840","Telewest Communications/Virgin Media","033674001/001/0917","5.75","Comms - Telephone Rental","190435780","16/03/2018","ICTS","Strategic ICTS (ICT Service Budget)","R4504"
"Wolverhampton City Council","http://opendatacommunities.org/id/metropolitan-district-council/wolverhampton","707840","Telewest Communications/Virgin Media","033674001/001/0417","6.00","Comms - Telephone Rental","190435785","16/03/2018","ICTS","Strategic ICTS (ICT Service Budget)","R4504"
"Wolverhampton City Council","http://opendatacommunities.org/id/metropolitan-district-council/wolverhampton","707840","Telewest Communications/Virgin Media","033674201/001/1117","19.75","Comms - Telephone Rental","190435791","16/03/2018","ICTS","Strategic ICTS (ICT Service Budget)","R4504"
"Wolverhampton City Council","http://opendatacommunities.org/id/metropolitan-district-council/wolverhampton","707840","Telewest Communications/Virgin Media","033674201/001/0717","28.68","Comms - Telephone Rental","190435795","16/03/2018","ICTS","Strategic ICTS (ICT Service Budget)","R4504"
"Wolverhampton City Council","http://opendatacommunities.org/id/metropolitan-district-council/wolverhampton","707840","Telewest Communications/Virgin Media","033674201/001/0517","25.25","Comms - Telephone Rental","190435797","16/03/2018","ICTS","Strategic ICTS (ICT Service Budget)","R4504"
"Wolverhampton City Council","http://opendatacommunities.org/id/metropolitan-district-council/wolverhampton","707840","Telewest Communications/Virgin Media","035045301/001/1117","5.75","Comms - Telephone Rental","190435803","16/03/2018","ICTS","Strategic ICTS (ICT Service Budget)","R4504"
"Wolverhampton City Council","http://opendatacommunities.org/id/metropolitan-district-council/wolverhampton","707840","Telewest Communications/Virgin Media","035045301/001/0118","5.75","Comms - Telephone Rental","190435801","16/03/2018","ICTS","Strategic ICTS (ICT Service Budget)","R4504"
"Wolverhampton City Council","http://opendatacommunities.org/id/metropolitan-district-council/wolverhampton","707840","Telewest Communications/Virgin Media","035045301/001/0517","6.00","Comms - Telephone Rental","190435809","16/03/2018","ICTS","Strategic ICTS (ICT Service Budget)","R4504"
"Wolverhampton City Council","http://opendatacommunities.org/id/metropolitan-district-council/wolverhampton","707840","Telewest Communications/Virgin Media","035045301/001/0117","6.00","Comms - Telephone Rental","190435813","16/03/2018","ICTS","Strategic ICTS (ICT Service Budget)","R4504"
"Wolverhampton City Council","http://opendatacommunities.org/id/metropolitan-district-council/wolverhampton","707840","Telewest Communications/Virgin Media","036800401/013/0118","0.58","Comms - Telephone Rental","190435817","16/03/2018","ICTS","Strategic ICTS (ICT Service Budget)","R4504"
"Wolverhampton City Council","http://opendatacommunities.org/id/metropolitan-district-council/wolverhampton","707840","Telewest Communications/Virgin Media","035830701/001/0118","422.02","Comms - Telephone Rental","190435815","16/03/2018","ICTS","Strategic ICTS (ICT Service Budget)","R4504"
"Wolverhampton City Council","http://opendatacommunities.org/id/metropolitan-district-council/wolverhampton","707840","Telewest Communications/Virgin Media","044904201/001/0218","45.75","Comms - Telephone Call charges","130206843","07/03/2018","Independent Living Service","Telecare","R4505"
"Wolverhampton City Council","http://opendatacommunities.org/id/metropolitan-district-council/wolverhampton","707840","Telewest Communications/Virgin Media","044904201/001/0218","-45.75","Comms - Telephone Call charges","130206843","07/03/2018","Independent Living Service","Telecare","R4505"
"Wolverhampton City Council","http://opendatacommunities.org/id/metropolitan-district-council/wolverhampton","707840","Telewest Communications/Virgin Media","044904201/001/0218","40.00","Comms - Telephone Call charges","130206843","07/03/2018","Independent Living Service","Telecare","R4505"
"Wolverhampton City Council","http://opendatacommunities.org/id/metropolitan-district-council/wolverhampton","707840","Telewest Communications/Virgin Media","044904201/001/0218","5.75","Comms - Telephone Call charges","130206843","07/03/2018","Independent Living Service","Telecare","R4505"
"Wolverhampton City Council","http://opendatacommunities.org/id/metropolitan-district-council/wolverhampton","707840","Telewest Communications/Virgin Media","044898101/001/0118","5.83","Comms - Telephone Call charges","130208226","09/03/2018","Independent Living Service","Telecare","R4505"
"Wolverhampton City Council","http://opendatacommunities.org/id/metropolitan-district-council/wolverhampton","707840","Telewest Communications/Virgin Media","033674001/001/1017","5.75","Comms - Telephone Rental","190435779","16/03/2018","ICTS","Strategic ICTS (ICT Service Budget)","R4504"
"Wolverhampton City Council","http://opendatacommunities.org/id/metropolitan-district-council/wolverhampton","707840","Telewest Communications/Virgin Media","033674001/001/0517","6.00","Comms - Telephone Rental","190435784","16/03/2018","ICTS","Strategic ICTS (ICT Service Budget)","R4504"
"Wolverhampton City Council","http://opendatacommunities.org/id/metropolitan-district-council/wolverhampton","707840","Telewest Communications/Virgin Media","033674201/001/1017","19.51","Comms - Telephone Rental","190435792","16/03/2018","ICTS","Strategic ICTS (ICT Service Budget)","R4504"
"Wolverhampton City Council","http://opendatacommunities.org/id/metropolitan-district-council/wolverhampton","707840","Telewest Communications/Virgin Media","033674001/001/0117","6.00","Comms - Telephone Rental","190435788","16/03/2018","ICTS","Strategic ICTS (ICT Service Budget)","R4504"
"Wolverhampton City Council","http://opendatacommunities.org/id/metropolitan-district-council/wolverhampton","707840","Telewest Communications/Virgin Media","033674201/001/0917","32.10","Comms - Telephone Rental","190435793","16/03/2018","ICTS","Strategic ICTS (ICT Service Budget)","R4504"
"Wolverhampton City Council","http://opendatacommunities.org/id/metropolitan-district-council/wolverhampton","707840","Telewest Communications/Virgin Media","033674201/001/0817","25.22","Comms - Telephone Rental","190435794","16/03/2018","ICTS","Strategic ICTS (ICT Service Budget)","R4504"
"Wolverhampton City Council","http://opendatacommunities.org/id/metropolitan-district-council/wolverhampton","707840","Telewest Communications/Virgin Media","033674201/001/0217","98.14","Comms - Telephone Rental","190435800","16/03/2018","ICTS","Strategic ICTS (ICT Service Budget)","R4504"
"Wolverhampton City Council","http://opendatacommunities.org/id/metropolitan-district-council/wolverhampton","707840","Telewest Communications/Virgin Media","035045301/001/1217","5.75","Comms - Telephone Rental","190435802","16/03/2018","ICTS","Strategic ICTS (ICT Service Budget)","R4504"
"Wolverhampton City Council","http://opendatacommunities.org/id/metropolitan-district-council/wolverhampton","707840","Telewest Communications/Virgin Media","035045301/001/0817","5.75","Comms - Telephone Rental","190435806","16/03/2018","ICTS","Strategic ICTS (ICT Service Budget)","R4504"
"Wolverhampton City Council","http://opendatacommunities.org/id/metropolitan-district-council/wolverhampton","707840","Telewest Communications/Virgin Media","035045301/001/0217","6.00","Comms - Telephone Rental","190435812","16/03/2018","ICTS","Strategic ICTS (ICT Service Budget)","R4504"
"Wolverhampton City Council","http://opendatacommunities.org/id/metropolitan-district-council/wolverhampton","707840","Telewest Communications/Virgin Media","035045301/001/0617","6.00","Comms - Telephone Rental","190435808","16/03/2018","ICTS","Strategic ICTS (ICT Service Budget)","R4504"
"Wolverhampton City Council","http://opendatacommunities.org/id/metropolitan-district-council/wolverhampton","707840","Telewest Communications/Virgin Media","935695-027","88,658.28","Comms - Telephone Rental","190435816","16/03/2018","ICTS","Strategic ICTS (ICT Service Budget)","R4504"
"Wolverhampton City Council","http://opendatacommunities.org/id/metropolitan-district-council/wolverhampton","707840","Telewest Communications/Virgin Media","044904201/001/0118","5.75","Comms - Telephone Call charges","130208227","09/03/2018","Independent Living Service","Telecare","R4505"
"Wolverhampton City Council","http://opendatacommunities.org/id/metropolitan-district-council/wolverhampton","707840","Telewest Communications/Virgin Media","033674001/001/0118","5.75","Comms - Telephone Rental","190435775","16/03/2018","ICTS","Strategic ICTS (ICT Service Budget)","R4504"
"Wolverhampton City Council","http://opendatacommunities.org/id/metropolitan-district-council/wolverhampton","707840","Telewest Communications/Virgin Media","033674001/001/1117","5.75","Comms - Telephone Rental","190435778","16/03/2018","ICTS","Strategic ICTS (ICT Service Budget)","R4504"
"Wolverhampton City Council","http://opendatacommunities.org/id/metropolitan-district-council/wolverhampton","707840","Telewest Communications/Virgin Media","033674001/001/0817","4.53","Comms - Telephone Rental","190435781","16/03/2018","ICTS","Strategic ICTS (ICT Service Budget)","R4504"
"Wolverhampton City Council","http://opendatacommunities.org/id/metropolitan-district-council/wolverhampton","707840","Telewest Communications/Virgin Media","033674001/001/0617","6.00","Comms - Telephone Rental","190435783","16/03/2018","ICTS","Strategic ICTS (ICT Service Budget)","R4504"
"Wolverhampton City Council","http://opendatacommunities.org/id/metropolitan-district-council/wolverhampton","707840","Telewest Communications/Virgin Media","033674001/001/0217","6.00","Comms - Telephone Rental","190435787","16/03/2018","ICTS","Strategic ICTS (ICT Service Budget)","R4504"
"Wolverhampton City Council","http://opendatacommunities.org/id/metropolitan-district-council/wolverhampton","707840","Telewest Communications/Virgin Media","033674201/001/0118","24.67","Comms - Telephone Rental","190435789","16/03/2018","ICTS","Strategic ICTS (ICT Service Budget)","R4504"
"Wolverhampton City Council","http://opendatacommunities.org/id/metropolitan-district-council/wolverhampton","707840","Telewest Communications/Virgin Media","033674201/001/0417","23.21","Comms - Telephone Rental","190435798","16/03/2018","ICTS","Strategic ICTS (ICT Service Budget)","R4504"
"Wolverhampton City Council","http://opendatacommunities.org/id/metropolitan-district-council/wolverhampton","707840","Telewest Communications/Virgin Media","033674201/001/0317","56.59","Comms - Telephone Rental","190435799","16/03/2018","ICTS","Strategic ICTS (ICT Service Budget)","R4504"
"Wolverhampton City Council","http://opendatacommunities.org/id/metropolitan-district-council/wolverhampton","707840","Telewest Communications/Virgin Media","035045301/001/0917","5.75","Comms - Telephone Rental","190435805","16/03/2018","ICTS","Strategic ICTS (ICT Service Budget)","R4504"
"Wolverhampton City Council","http://opendatacommunities.org/id/metropolitan-district-council/wolverhampton","707840","Telewest Communications/Virgin Media","035045301/001/0317","6.00","Comms - Telephone Rental","190435811","16/03/2018","ICTS","Strategic ICTS (ICT Service Budget)","R4504"
"Wolverhampton City Council","http://opendatacommunities.org/id/metropolitan-district-council/wolverhampton","707840","Telewest Communications/Virgin Media","036800401/013/1117","0.16","Comms - Telephone Rental","190435819","16/03/2018","ICTS","Strategic ICTS (ICT Service Budget)","R4504"
"Wolverhampton City Council","http://opendatacommunities.org/id/metropolitan-district-council/wolverhampton","707840","Telewest Communications/Virgin Media","036800401/013/1017","0.85","Comms - Telephone Rental","190435820","16/03/2018","ICTS","Strategic ICTS (ICT Service Budget)","R4504"
"Wolverhampton City Council","http://opendatacommunities.org/id/metropolitan-district-council/wolverhampton","707840","Telewest Communications/Virgin Media","045047301/001/0118","5.76","Comms - Telephone Call charges","130208228","07/03/2018","Independent Living Service","Telecare","R4505"
"Wolverhampton City Council","http://opendatacommunities.org/id/metropolitan-district-council/wolverhampton","707841","Telford & Wrekin Council","4369634","2,068.00","Client Transport - SEN","130207427","14/03/2018","School Planning & Resources","Special - Transport","R3043"
"Wolverhampton City Council","http://opendatacommunities.org/id/metropolitan-district-council/wolverhampton","707841","Telford & Wrekin Council","4369636","1,107.00","Client Transport - SEN","130207428","14/03/2018","School Planning & Resources","Special - Transport","R3043"
"Wolverhampton City Council","http://opendatacommunities.org/id/metropolitan-district-council/wolverhampton","707845","Telford Occupational Health Services","34943 corr","-10.00","Medical Fees","130208299","07/03/2018","Schools","Castlecroft Primary School","R1400"
"Wolverhampton City Council","http://opendatacommunities.org/id/metropolitan-district-council/wolverhampton","707855","Terberg Matec UK Limited","96354265","232.37","Services - Professional Fees","190435320","14/03/2018","Fleet Services","Fleet Management","R4400"
"Wolverhampton City Council","http://opendatacommunities.org/id/metropolitan-district-council/wolverhampton","707855","Terberg Matec UK Limited","96354647","86.51","Services - Professional Fees","190439632","23/03/2018","Fleet Services","Fleet Management","R4400"
"Wolverhampton City Council","http://opendatacommunities.org/id/metropolitan-district-council/wolverhampton","707855","Terberg Matec UK Limited","96353969","34.72","Equipment - Purchase","190439631","23/03/2018","Fleet Services","Fleet Management","R4000"
"Wolverhampton City Council","http://opendatacommunities.org/id/metropolitan-district-council/wolverhampton","707855","Terberg Matec UK Limited","96353969","18.23","Equipment - Purchase","190439631","23/03/2018","Fleet Services","Fleet Management","R4000"
"Wolverhampton City Council","http://opendatacommunities.org/id/metropolitan-district-council/wolverhampton","707855","Terberg Matec UK Limited","96353969","271.62","Equipment - Purchase","190439631","23/03/2018","Fleet Services","Fleet Management","R4000"
"Wolverhampton City Council","http://opendatacommunities.org/id/metropolitan-district-council/wolverhampton","707855","Terberg Matec UK Limited","96354891","868.87","Services - Professional Fees","190440592","23/03/2018","Fleet Services","Fleet Management","R4400"
"Wolverhampton City Council","http://opendatacommunities.org/id/metropolitan-district-council/wolverhampton","707855","Terberg Matec UK Limited","96354650","25.75","Equipment - Purchase","190439633","23/03/2018","Fleet Services","Fleet Management","R4000"
"Wolverhampton City Council","http://opendatacommunities.org/id/metropolitan-district-council/wolverhampton","707855","Terberg Matec UK Limited","96354650","25.11","Equipment - Purchase","190439633","23/03/2018","Fleet Services","Fleet Management","R4000"
"Wolverhampton City Council","http://opendatacommunities.org/id/metropolitan-district-council/wolverhampton","707855","Terberg Matec UK Limited","96354450","2.00","Equipment - Purchase","190437039","21/03/2018","Fleet Services","Fleet Management","R4000"
"Wolverhampton City Council","http://opendatacommunities.org/id/metropolitan-district-council/wolverhampton","707855","Terberg Matec UK Limited","96353000","289.94","Equipment - Purchase","190430164","02/03/2018","Fleet Services","Fleet Management","R4000"
"Wolverhampton City Council","http://opendatacommunities.org/id/metropolitan-district-council/wolverhampton","707855","Terberg Matec UK Limited","96354890","37.89","Services - Professional Fees","190440591","23/03/2018","Fleet Services","Fleet Management","R4400"
"Wolverhampton City Council","http://opendatacommunities.org/id/metropolitan-district-council/wolverhampton","707855","Terberg Matec UK Limited","96353562","419.03","Equipment - Purchase","190430165","02/03/2018","Fleet Services","Fleet Management","R4000"
"Wolverhampton City Council","http://opendatacommunities.org/id/metropolitan-district-council/wolverhampton","707855","Terberg Matec UK Limited","96353562","420.53","Equipment - Purchase","190430165","02/03/2018","Fleet Services","Fleet Management","R4000"
"Wolverhampton City Council","http://opendatacommunities.org/id/metropolitan-district-council/wolverhampton","707855","Terberg Matec UK Limited","96353562","311.73","Equipment - Purchase","190430165","02/03/2018","Fleet Services","Fleet Management","R4000"
"Wolverhampton City Council","http://opendatacommunities.org/id/metropolitan-district-council/wolverhampton","707858","Tettenhall College","NEF Spring 2018 INST 2","13,355.00","TPP - Private Nursery Education Funding","190439901","23/03/2018","Early Years","Early Years Universal Entitlement for 3 and 4 Year Olds","R5035"
"Wolverhampton City Council","http://opendatacommunities.org/id/metropolitan-district-council/wolverhampton","707891","The Bigword Interpreting Serv. Limited","INV20160359","80.00","Services - Translation fees","130210136","26/03/2018","Child Protection","CIN/CP Social Work Unit - Area 4","R4406"
"Wolverhampton City Council","http://opendatacommunities.org/id/metropolitan-district-council/wolverhampton","707891","The Bigword Interpreting Serv. Limited","INV590616","36.50","Services - Professional Fees","130208235","26/03/2018","Customer Services","City Direct","R4400"
"Wolverhampton City Council","http://opendatacommunities.org/id/metropolitan-district-council/wolverhampton","707891","The Bigword Interpreting Serv. Limited","INV20198077","48.00","Services - Translation fees","130203736","14/03/2018","Mental Health Assesment & Care Management","Mental Health Assessment & Care Management","R4406"
"Wolverhampton City Council","http://opendatacommunities.org/id/metropolitan-district-council/wolverhampton","707891","The Bigword Interpreting Serv. Limited","INV20182022","100.00","Services - Translation fees","130209239","14/03/2018","Early Intervention","EIP Locality 4 - Bingley","R4406"
"Wolverhampton City Council","http://opendatacommunities.org/id/metropolitan-district-council/wolverhampton","707891","The Bigword Interpreting Serv. Limited","INV20171468","40.00","Services - Translation fees","130209230","16/03/2018","Early Intervention","EIP Locality 4 - Bingley","R4406"
"Wolverhampton City Council","http://opendatacommunities.org/id/metropolitan-district-council/wolverhampton","707891","The Bigword Interpreting Serv. Limited","INV20182021","60.00","Services - Translation fees","130209238","16/03/2018","Early Intervention","EIP Locality 4 - Bingley","R4406"
"Wolverhampton City Council","http://opendatacommunities.org/id/metropolitan-district-council/wolverhampton","707891","The Bigword Interpreting Serv. Limited","INV20187484","40.00","Services - Translation fees","130209246","16/03/2018","Early Intervention","EIP Locality 4 - Bingley","R4406"
"Wolverhampton City Council","http://opendatacommunities.org/id/metropolitan-district-council/wolverhampton","707891","The Bigword Interpreting Serv. Limited","INV20186989","80.00","Services - Translation fees","130209241","16/03/2018","Early Intervention","EIP Locality 4 - Bingley","R4406"
"Wolverhampton City Council","http://opendatacommunities.org/id/metropolitan-district-council/wolverhampton","707891","The Bigword Interpreting Serv. Limited","INV20182017","40.00","Services - Translation fees","130209235","16/03/2018","Early Intervention","EIP Locality 4 - Bingley","R4406"
"Wolverhampton City Council","http://opendatacommunities.org/id/metropolitan-district-council/wolverhampton","707891","The Bigword Interpreting Serv. Limited","INV20199944","72.00","Services - Translation fees","130206214","14/03/2018","Child Protection","CIN/CP Social Work Unit - Area 6","R4406"
"Wolverhampton City Council","http://opendatacommunities.org/id/metropolitan-district-council/wolverhampton","707891","The Bigword Interpreting Serv. Limited","80030649","8.93","Services - Translation fees","130208234","07/03/2018","Child Protection","CIN/CP Social Work Unit - Area 4","R4406"
"Wolverhampton City Council","http://opendatacommunities.org/id/metropolitan-district-council/wolverhampton","707891","The Bigword Interpreting Serv. Limited","INV20199452","32.00","Services - Translation fees","130205123","07/03/2018","Adults Assessment & Care Management West","Adult Services � West","R4406"
"Wolverhampton City Council","http://opendatacommunities.org/id/metropolitan-district-council/wolverhampton","707891","The Bigword Interpreting Serv. Limited","INV20199736","32.00","Services - Professional Fees","130205891","07/03/2018","Governance Services","Democratic Support","R4400"
"Wolverhampton City Council","http://opendatacommunities.org/id/metropolitan-district-council/wolverhampton","707891","The Bigword Interpreting Serv. Limited","INV20199440","64.00","Services - Professional Fees","130205355","07/03/2018","Looked After Children","Adoption and Residence Team & Allowances","R4400"
"Wolverhampton City Council","http://opendatacommunities.org/id/metropolitan-district-council/wolverhampton","707891","The Bigword Interpreting Serv. Limited","INV20199459","48.00","Services - Translation fees","130205366","07/03/2018","Child Protection","CIN/CP Social Work Unit - Area 3","R4406"
"Wolverhampton City Council","http://opendatacommunities.org/id/metropolitan-district-council/wolverhampton","707891","The Bigword Interpreting Serv. Limited","INV20199463","32.00","Services - Translation fees","130205370","07/03/2018","Child Protection","CIN/CP Social Work Unit - Area 3","R4406"
"Wolverhampton City Council","http://opendatacommunities.org/id/metropolitan-district-council/wolverhampton","707891","The Bigword Interpreting Serv. Limited","INV20199461","64.00","Services - Translation fees","130205368","07/03/2018","Child Protection","CIN/CP Social Work Unit - Area 3","R4406"
"Wolverhampton City Council","http://opendatacommunities.org/id/metropolitan-district-council/wolverhampton","707891","The Bigword Interpreting Serv. Limited","INV20199446","32.00","Services - Professional Fees","130205360","07/03/2018","Governance Services","Democratic Support","R4400"
"Wolverhampton City Council","http://opendatacommunities.org/id/metropolitan-district-council/wolverhampton","707891","The Bigword Interpreting Serv. Limited","INV20187043","48.00","Services - Translation fees","130188853","21/03/2018","Child Protection","CIN/CP Social Work Unit - Area 8","R4406"
"Wolverhampton City Council","http://opendatacommunities.org/id/metropolitan-district-council/wolverhampton","707891","The Bigword Interpreting Serv. Limited","INV20191418","80.00","Services - Translation fees","130210135","26/03/2018","Child Protection","CIN/CP Social Work Unit - Area 4","R4406"
"Wolverhampton City Council","http://opendatacommunities.org/id/metropolitan-district-council/wolverhampton","707891","The Bigword Interpreting Serv. Limited","INV20160358","32.00","Services - Translation fees","130210134","26/03/2018","Child Protection","CIN/CP Social Work Unit - Area 4","R4406"
"Wolverhampton City Council","http://opendatacommunities.org/id/metropolitan-district-council/wolverhampton","707891","The Bigword Interpreting Serv. Limited","INV20200027","96.00","Services - Translation fees","130206367","14/03/2018","Child Protection","CIN/CP Social Work Unit - Area 6","R4406"
"Wolverhampton City Council","http://opendatacommunities.org/id/metropolitan-district-council/wolverhampton","707891","The Bigword Interpreting Serv. Limited","INV20176196","124.00","Services - Translation fees","130209231","16/03/2018","Early Intervention","EIP Locality 4 - Bingley","R4406"
"Wolverhampton City Council","http://opendatacommunities.org/id/metropolitan-district-council/wolverhampton","707891","The Bigword Interpreting Serv. Limited","INV20187413","40.00","Services - Translation fees","130209245","16/03/2018","Early Intervention","EIP Locality 4 - Bingley","R4406"
"Wolverhampton City Council","http://opendatacommunities.org/id/metropolitan-district-council/wolverhampton","707891","The Bigword Interpreting Serv. Limited","INV20182016","40.00","Services - Translation fees","130209234","16/03/2018","Early Intervention","EIP Locality 4 - Bingley","R4406"
"Wolverhampton City Council","http://opendatacommunities.org/id/metropolitan-district-council/wolverhampton","707891","The Bigword Interpreting Serv. Limited","INV20182018","60.00","Services - Translation fees","130209236","16/03/2018","Early Intervention","EIP Locality 4 - Bingley","R4406"
"Wolverhampton City Council","http://opendatacommunities.org/id/metropolitan-district-council/wolverhampton","707891","The Bigword Interpreting Serv. Limited","INV20187079","16.00","Services - Translation fees","130209242","16/03/2018","Early Intervention","EIP Locality 4 - Bingley","R4406"
"Wolverhampton City Council","http://opendatacommunities.org/id/metropolitan-district-council/wolverhampton","707891","The Bigword Interpreting Serv. Limited","INV20186429","48.00","Services - Translation fees","130187561","14/03/2018","Child Protection","CIN/CP Social Work Unit - Area 8","R4406"
"Wolverhampton City Council","http://opendatacommunities.org/id/metropolitan-district-council/wolverhampton","707891","The Bigword Interpreting Serv. Limited","INV20199705","32.00","Services - Translation fees","130205890","07/03/2018","Child Protection","CIN/CP Social Work Unit - Area 3","R4406"
"Wolverhampton City Council","http://opendatacommunities.org/id/metropolitan-district-council/wolverhampton","707891","The Bigword Interpreting Serv. Limited","80035542","1,425.95","Services - Professional Fees","130206962","07/03/2018","Legal Services","Centralised External Legal Costs","R4400"
"Wolverhampton City Council","http://opendatacommunities.org/id/metropolitan-district-council/wolverhampton","707891","The Bigword Interpreting Serv. Limited","INV20199458","48.00","Services - Translation fees","130205365","07/03/2018","Child Protection","CIN/CP Social Work Unit - Area 3","R4406"
"Wolverhampton City Council","http://opendatacommunities.org/id/metropolitan-district-council/wolverhampton","707891","The Bigword Interpreting Serv. Limited","INV20199462","32.00","Services - Translation fees","130205369","07/03/2018","Child Protection","CIN/CP Social Work Unit - Area 3","R4406"
"Wolverhampton City Council","http://opendatacommunities.org/id/metropolitan-district-council/wolverhampton","707891","The Bigword Interpreting Serv. Limited","INV20199460","64.00","Services - Translation fees","130205367","07/03/2018","Child Protection","CIN/CP Social Work Unit - Area 3","R4406"
"Wolverhampton City Council","http://opendatacommunities.org/id/metropolitan-district-council/wolverhampton","707891","The Bigword Interpreting Serv. Limited","INV20199444","32.00","Services - Professional Fees","130205359","07/03/2018","Specialist Support","Intensive Family Support & Family Group Conferencing Team","R4400"
"Wolverhampton City Council","http://opendatacommunities.org/id/metropolitan-district-council/wolverhampton","707891","The Bigword Interpreting Serv. Limited","INV20199439","80.00","Services - Translation fees","130205354","07/03/2018","Child Protection","MASH","R4406"
"Wolverhampton City Council","http://opendatacommunities.org/id/metropolitan-district-council/wolverhampton","707891","The Bigword Interpreting Serv. Limited","INV20199453","64.00","Services - Professional Fees","130205124","07/03/2018","Adults Assessment & Care Management East","Assessment Team (East)","R4400"
"Wolverhampton City Council","http://opendatacommunities.org/id/metropolitan-district-council/wolverhampton","707891","The Bigword Interpreting Serv. Limited","INV20159310","32.00","Services - Translation fees","130210133","21/03/2018","Child Protection","CIN/CP Social Work Unit - Area 4","R4406"
"Wolverhampton City Council","http://opendatacommunities.org/id/metropolitan-district-council/wolverhampton","707891","The Bigword Interpreting Serv. Limited","INV20199443","32.00","Services - Translation fees","130205358","07/03/2018","Child Protection","CIN/CP Social Work Unit - Area 7","R4406"
"Wolverhampton City Council","http://opendatacommunities.org/id/metropolitan-district-council/wolverhampton","707891","The Bigword Interpreting Serv. Limited","80029502","17.14","Services - Translation fees","130208233","07/03/2018","Child Protection","CIN/CP Social Work Unit - Area 4","R4406"
"Wolverhampton City Council","http://opendatacommunities.org/id/metropolitan-district-council/wolverhampton","707891","The Bigword Interpreting Serv. Limited","80029168","512.08","Services - Translation fees","130208232","07/03/2018","Child Protection","CIN/CP Social Work Unit - Area 4","R4406"
"Wolverhampton City Council","http://opendatacommunities.org/id/metropolitan-district-council/wolverhampton","707891","The Bigword Interpreting Serv. Limited","INV20199455","64.00","Services - Translation fees","130205363","07/03/2018","Child Protection","CIN/CP Social Work Unit - Area 3","R4406"
"Wolverhampton City Council","http://opendatacommunities.org/id/metropolitan-district-council/wolverhampton","707891","The Bigword Interpreting Serv. Limited","INV20199457","32.00","Services - Translation fees","130205364","07/03/2018","Child Protection","CIN/CP Social Work Unit - Area 3","R4406"
"Wolverhampton City Council","http://opendatacommunities.org/id/metropolitan-district-council/wolverhampton","707891","The Bigword Interpreting Serv. Limited","INV20199471","48.00","Services - Translation fees","130205377","07/03/2018","Child Protection","CIN/CP Social Work Unit - Area 8","R4406"
"Wolverhampton City Council","http://opendatacommunities.org/id/metropolitan-district-council/wolverhampton","707891","The Bigword Interpreting Serv. Limited","INV20199472","64.00","Services - Translation fees","130205378","07/03/2018","Child Protection","CIN/CP Social Work Unit - Area 8","R4406"
"Wolverhampton City Council","http://opendatacommunities.org/id/metropolitan-district-council/wolverhampton","707891","The Bigword Interpreting Serv. Limited","INV20199450","48.00","Services - Translation fees","130205362","07/03/2018","Child Protection","Childrens with Disabilities Team","R4406"
"Wolverhampton City Council","http://opendatacommunities.org/id/metropolitan-district-council/wolverhampton","707891","The Bigword Interpreting Serv. Limited","INV20199658","32.00","Services - Professional Fees","130205725","07/03/2018","Governance Services","Democratic Support","R4400"
"Wolverhampton City Council","http://opendatacommunities.org/id/metropolitan-district-council/wolverhampton","707891","The Bigword Interpreting Serv. Limited","INV20187112","80.00","Services - Translation fees","130189001","21/03/2018","Child Protection","CIN/CP Social Work Unit - Area 8","R4406"
"Wolverhampton City Council","http://opendatacommunities.org/id/metropolitan-district-council/wolverhampton","707891","The Bigword Interpreting Serv. Limited","INV591571","8.43","Services - Translation fees","130208237","26/03/2018","Child Protection","CIN/CP Social Work Unit - Area 8","R4406"
"Wolverhampton City Council","http://opendatacommunities.org/id/metropolitan-district-council/wolverhampton","707891","The Bigword Interpreting Serv. Limited","INV20200144","32.00","Services - Professional Fees","130206545","14/03/2018","Governance Services","Democratic Support","R4400"
"Wolverhampton City Council","http://opendatacommunities.org/id/metropolitan-district-council/wolverhampton","707891","The Bigword Interpreting Serv. Limited","INV20200142","48.00","Services - Translation fees","130206544","14/03/2018","Child Protection","CIN/CP Social Work Unit - Area 6","R4406"
"Wolverhampton City Council","http://opendatacommunities.org/id/metropolitan-district-council/wolverhampton","707891","The Bigword Interpreting Serv. Limited","INV20182015","40.00","Services - Translation fees","130209233","16/03/2018","Early Intervention","EIP Locality 4 - Bingley","R4406"
"Wolverhampton City Council","http://opendatacommunities.org/id/metropolitan-district-council/wolverhampton","707891","The Bigword Interpreting Serv. Limited","INV20187187","40.00","Services - Translation fees","130209243","16/03/2018","Early Intervention","EIP Locality 4 - Bingley","R4406"
"Wolverhampton City Council","http://opendatacommunities.org/id/metropolitan-district-council/wolverhampton","707891","The Bigword Interpreting Serv. Limited","INV20187857","60.00","Services - Translation fees","130209248","16/03/2018","Early Intervention","EIP Locality 4 - Bingley","R4406"
"Wolverhampton City Council","http://opendatacommunities.org/id/metropolitan-district-council/wolverhampton","707891","The Bigword Interpreting Serv. Limited","INV20187269","72.00","Services - Translation fees","130209244","16/03/2018","Early Intervention","EIP Locality 4 - Bingley","R4406"
"Wolverhampton City Council","http://opendatacommunities.org/id/metropolitan-district-council/wolverhampton","707891","The Bigword Interpreting Serv. Limited","INV20189624","48.00","Services - Translation fees","130192461","21/03/2018","Child Protection","CIN/CP Social Work Unit - Area 8","R4406"
"Wolverhampton City Council","http://opendatacommunities.org/id/metropolitan-district-council/wolverhampton","707891","The Bigword Interpreting Serv. Limited","INV20199466","32.00","Services - Translation fees","130205372","07/03/2018","Child Protection","CIN/CP Social Work Unit - Area 2","R4406"
"Wolverhampton City Council","http://opendatacommunities.org/id/metropolitan-district-council/wolverhampton","707891","The Bigword Interpreting Serv. Limited","INV20199441","64.00","Services - Professional Fees","130205356","07/03/2018","Looked After Children","Adoption and Residence Team & Allowances","R4400"
"Wolverhampton City Council","http://opendatacommunities.org/id/metropolitan-district-council/wolverhampton","707891","The Bigword Interpreting Serv. Limited","INV20199447","32.00","Services - Professional Fees","130205361","07/03/2018","Governance Services","Democratic Support","R4400"
"Wolverhampton City Council","http://opendatacommunities.org/id/metropolitan-district-council/wolverhampton","707891","The Bigword Interpreting Serv. Limited","INV20199470","48.00","Services - Translation fees","130205376","07/03/2018","Child Protection","CIN/CP Social Work Unit - Area 5","R4406"
"Wolverhampton City Council","http://opendatacommunities.org/id/metropolitan-district-council/wolverhampton","707891","The Bigword Interpreting Serv. Limited","PREVIEWOF80035524","502.92","Services - Professional Fees","130206963","07/03/2018","Legal Services","Centralised External Legal Costs","R4400"
"Wolverhampton City Council","http://opendatacommunities.org/id/metropolitan-district-council/wolverhampton","707891","The Bigword Interpreting Serv. Limited","INV20199464","64.00","Services - Translation fees","130205371","07/03/2018","Child Protection","CIN/CP Social Work Unit - Area 3","R4406"
"Wolverhampton City Council","http://opendatacommunities.org/id/metropolitan-district-council/wolverhampton","707891","The Bigword Interpreting Serv. Limited","INV20199442","32.00","Services - Translation fees","130205357","07/03/2018","Child Protection","CIN/CP Social Work Unit - Area 7","R4406"
"Wolverhampton City Council","http://opendatacommunities.org/id/metropolitan-district-council/wolverhampton","707891","The Bigword Interpreting Serv. Limited","80026668","300.49","Services - Translation fees","130208231","07/03/2018","Child Protection","CIN/CP Social Work Unit - Area 4","R4406"
"Wolverhampton City Council","http://opendatacommunities.org/id/metropolitan-district-council/wolverhampton","707891","The Bigword Interpreting Serv. Limited","INV20174823","32.00","Services - Translation fees","130207135","02/03/2018","Child Protection","CIN/CP Social Work Unit - Area 4","R4406"
"Wolverhampton City Council","http://opendatacommunities.org/id/metropolitan-district-council/wolverhampton","707891","The Bigword Interpreting Serv. Limited","INV20198578","48.00","Services - Translation fees","130204452","26/03/2018","Child Protection","Childrens with Disabilities Team","R4406"
"Wolverhampton City Council","http://opendatacommunities.org/id/metropolitan-district-council/wolverhampton","707891","The Bigword Interpreting Serv. Limited","INV591562","106.45","Services - Translation fees","130208236","26/03/2018","Child Protection","MASH","R4406"
"Wolverhampton City Council","http://opendatacommunities.org/id/metropolitan-district-council/wolverhampton","707891","The Bigword Interpreting Serv. Limited","INV20200023","39.00","Services - Translation fees","130206706","23/03/2018","Early Intervention","EIP Locality 4 - Bingley","R4406"
"Wolverhampton City Council","http://opendatacommunities.org/id/metropolitan-district-council/wolverhampton","707891","The Bigword Interpreting Serv. Limited","INV20182014","40.00","Services - Translation fees","130209232","16/03/2018","Early Intervention","EIP Locality 4 - Bingley","R4406"
"Wolverhampton City Council","http://opendatacommunities.org/id/metropolitan-district-council/wolverhampton","707891","The Bigword Interpreting Serv. Limited","INV20186952","60.00","Services - Translation fees","130209240","16/03/2018","Early Intervention","EIP Locality 4 - Bingley","R4406"
"Wolverhampton City Council","http://opendatacommunities.org/id/metropolitan-district-council/wolverhampton","707891","The Bigword Interpreting Serv. Limited","INV20187670","40.00","Services - Translation fees","130209247","16/03/2018","Early Intervention","EIP Locality 4 - Bingley","R4406"
"Wolverhampton City Council","http://opendatacommunities.org/id/metropolitan-district-council/wolverhampton","707891","The Bigword Interpreting Serv. Limited","INV20200067","48.00","Services - Translation fees","130206541","14/03/2018","Child Protection","CIN/CP Social Work Unit - Area 4","R4406"
"Wolverhampton City Council","http://opendatacommunities.org/id/metropolitan-district-council/wolverhampton","707891","The Bigword Interpreting Serv. Limited","INV20200050","56.00","Services - Translation fees","130206540","14/03/2018","Early Intervention","EIP Locality 5 � Whitmore Reans","R4406"
"Wolverhampton City Council","http://opendatacommunities.org/id/metropolitan-district-council/wolverhampton","707891","The Bigword Interpreting Serv. Limited","INV20200141","32.00","Services - Professional Fees","130206543","14/03/2018","Specialist Support","Intensive Family Support & Family Group Conferencing Team","R4400"
"Wolverhampton City Council","http://opendatacommunities.org/id/metropolitan-district-council/wolverhampton","707891","The Bigword Interpreting Serv. Limited","INV20182019","40.00","Services - Translation fees","130209237","16/03/2018","Early Intervention","EIP Locality 4 - Bingley","R4406"
"Wolverhampton City Council","http://opendatacommunities.org/id/metropolitan-district-council/wolverhampton","707891","The Bigword Interpreting Serv. Limited","80029106","92.37","Services - Translation fees","130207701","02/03/2018","Early Intervention","EIP Locality 4 - Bingley","R4406"
"Wolverhampton City Council","http://opendatacommunities.org/id/metropolitan-district-council/wolverhampton","707891","The Bigword Interpreting Serv. Limited","80029106","15.24","Services - Translation fees","130207701","02/03/2018","Early Intervention","EIP Locality 4 - Bingley","R4406"
"Wolverhampton City Council","http://opendatacommunities.org/id/metropolitan-district-council/wolverhampton","707928","The Columbaria Company T/A Odlings","INV0058780","82.00","Materials","130208413","07/03/2018","Bereavement Services","Cemeteries","R4007"
"Wolverhampton City Council","http://opendatacommunities.org/id/metropolitan-district-council/wolverhampton","707928","The Columbaria Company T/A Odlings","INV0058761","82.00","Materials","130205892","07/03/2018","Bereavement Services","Cemeteries","R4007"
"Wolverhampton City Council","http://opendatacommunities.org/id/metropolitan-district-council/wolverhampton","707946","The Disabled Adaptations Service","17/0032/DFG","421.60","Grants paid out","190440268","23/03/2018","","Disabled Facilities Grants","C5000"
"Wolverhampton City Council","http://opendatacommunities.org/id/metropolitan-district-council/wolverhampton","707946","The Disabled Adaptations Service","16/0825/DFG","1,364.70","Grants paid out","190440269","23/03/2018","","Disabled Facilities Grants","C5000"
"Wolverhampton City Council","http://opendatacommunities.org/id/metropolitan-district-council/wolverhampton","707946","The Disabled Adaptations Service","16/0754/DFG","333.35","Grants paid out","190437894","21/03/2018","","Disabled Facilities Grants","C5000"
"Wolverhampton City Council","http://opendatacommunities.org/id/metropolitan-district-council/wolverhampton","707946","The Disabled Adaptations Service","17/0091/DFG","812.30","Grants paid out","190437898","21/03/2018","","Disabled Facilities Grants","C5000"
"Wolverhampton City Council","http://opendatacommunities.org/id/metropolitan-district-council/wolverhampton","707976","The Grange Residential Home","P167678 01041820180312","2,080.00","TPP - Residential Care - Long Term","190434717","14/03/2018","Older People Care Purchasing","OP Care Purchasing (Spot Placements)","R5400"
"Wolverhampton City Council","http://opendatacommunities.org/id/metropolitan-district-council/wolverhampton","707985","The Headset Company UK Limited","4052580","63.90","Equipment - Purchase","130207136","16/03/2018","Adults Assessment & Care Management West","Adult Services � West","R4000"
"Wolverhampton City Council","http://opendatacommunities.org/id/metropolitan-district-council/wolverhampton","707985","The Headset Company UK Limited","4052562","179.55","Equipment - Purchase","130206707","14/03/2018","Carer Support","Carers Support","R4000"
"Wolverhampton City Council","http://opendatacommunities.org/id/metropolitan-district-council/wolverhampton","707985","The Headset Company UK Limited","4052562","3.95","Equipment - Purchase","130206707","14/03/2018","Carer Support","Carers Support","R4000"
"Wolverhampton City Council","http://opendatacommunities.org/id/metropolitan-district-council/wolverhampton","707986","The Helping Hand Company","313125","165.00","Equipment - R & M","130208414","26/03/2018","Independent Living Service","Independent Living Service","R4003"
"Wolverhampton City Council","http://opendatacommunities.org/id/metropolitan-district-council/wolverhampton","707986","The Helping Hand Company","313125","499.00","Equipment - R & M","130208414","26/03/2018","Independent Living Service","Independent Living Service","R4003"
"Wolverhampton City Council","http://opendatacommunities.org/id/metropolitan-district-council/wolverhampton","707986","The Helping Hand Company","313125","68.00","Equipment - R & M","130208414","26/03/2018","Independent Living Service","Independent Living Service","R4003"
"Wolverhampton City Council","http://opendatacommunities.org/id/metropolitan-district-council/wolverhampton","707986","The Helping Hand Company","313125","78.00","Equipment - R & M","130208414","26/03/2018","Independent Living Service","Independent Living Service","R4003"
"Wolverhampton City Council","http://opendatacommunities.org/id/metropolitan-district-council/wolverhampton","707986","The Helping Hand Company","313125","40.00","Equipment - R & M","130208414","26/03/2018","Independent Living Service","Independent Living Service","R4003"
"Wolverhampton City Council","http://opendatacommunities.org/id/metropolitan-district-council/wolverhampton","707986","The Helping Hand Company","313125","100.00","Equipment - R & M","130208414","26/03/2018","Independent Living Service","Independent Living Service","R4003"
"Wolverhampton City Council","http://opendatacommunities.org/id/metropolitan-district-council/wolverhampton","707986","The Helping Hand Company","313408","341.33","Equipment - Purchase","130208714","26/03/2018","Environmental Maintenance","Parks / Open Spaces - Repairs & Maintenance","R4000"
"Wolverhampton City Council","http://opendatacommunities.org/id/metropolitan-district-council/wolverhampton","707986","The Helping Hand Company","313408","128.83","Equipment - Purchase","130208714","26/03/2018","Environmental Maintenance","Parks / Open Spaces - Repairs & Maintenance","R4000"
"Wolverhampton City Council","http://opendatacommunities.org/id/metropolitan-district-council/wolverhampton","707986","The Helping Hand Company","313408","87.60","Equipment - Purchase","130208714","26/03/2018","Environmental Maintenance","Parks / Open Spaces - Repairs & Maintenance","R4000"
"Wolverhampton City Council","http://opendatacommunities.org/id/metropolitan-district-council/wolverhampton","707986","The Helping Hand Company","313408","142.00","Protective Clothing","130208714","26/03/2018","Environmental Maintenance","Parks / Open Spaces - Repairs & Maintenance","R4200"
"Wolverhampton City Council","http://opendatacommunities.org/id/metropolitan-district-council/wolverhampton","707986","The Helping Hand Company","310916","165.00","Equipment - R & M","130204784","02/03/2018","Independent Living Service","Independent Living Service","R4003"
"Wolverhampton City Council","http://opendatacommunities.org/id/metropolitan-district-council/wolverhampton","707986","The Helping Hand Company","310916","499.00","Equipment - R & M","130204784","02/03/2018","Independent Living Service","Independent Living Service","R4003"
"Wolverhampton City Council","http://opendatacommunities.org/id/metropolitan-district-council/wolverhampton","707986","The Helping Hand Company","310916","68.00","Equipment - R & M","130204784","02/03/2018","Independent Living Service","Independent Living Service","R4003"
"Wolverhampton City Council","http://opendatacommunities.org/id/metropolitan-district-council/wolverhampton","707986","The Helping Hand Company","310916","100.00","Equipment - R & M","130204784","02/03/2018","Independent Living Service","Independent Living Service","R4003"
"Wolverhampton City Council","http://opendatacommunities.org/id/metropolitan-district-council/wolverhampton","707986","The Helping Hand Company","310916","78.00","Equipment - R & M","130204784","02/03/2018","Independent Living Service","Independent Living Service","R4003"
"Wolverhampton City Council","http://opendatacommunities.org/id/metropolitan-district-council/wolverhampton","707986","The Helping Hand Company","310916","353.00","Equipment - R & M","130204784","02/03/2018","Independent Living Service","Independent Living Service","R4003"
"Wolverhampton City Council","http://opendatacommunities.org/id/metropolitan-district-council/wolverhampton","707986","The Helping Hand Company","310916","48.00","Equipment - R & M","130204784","02/03/2018","Independent Living Service","Independent Living Service","R4003"
"Wolverhampton City Council","http://opendatacommunities.org/id/metropolitan-district-council/wolverhampton","707986","The Helping Hand Company","310916","341.00","Equipment - R & M","130204784","02/03/2018","Independent Living Service","Independent Living Service","R4003"
"Wolverhampton City Council","http://opendatacommunities.org/id/metropolitan-district-council/wolverhampton","707986","The Helping Hand Company","310917","351.00","Equipment - R & M","130204785","07/03/2018","Independent Living Service","Independent Living Service","R4003"
"Wolverhampton City Council","http://opendatacommunities.org/id/metropolitan-district-council/wolverhampton","707986","The Helping Hand Company","312544","822.00","Equipment - Purchase","130207431","16/03/2018","Independent Living Service","Independent Living Service","R4000"
"Wolverhampton City Council","http://opendatacommunities.org/id/metropolitan-district-council/wolverhampton","707988","The High Arcal School","P16852020180316","650.00","Grant Payments to Individuals","190437072","21/03/2018","Looked After Children","LAC Education Team (LACE)","R6402"
"Wolverhampton City Council","http://opendatacommunities.org/id/metropolitan-district-council/wolverhampton","708031","The Marlowe School","2148730","2,952.40","TPP - Alternative Provision of Education","130208057","26/03/2018","Looked After Children","Out of City - Pooled Budget","R5037"
"Wolverhampton City Council","http://opendatacommunities.org/id/metropolitan-district-council/wolverhampton","708031","The Marlowe School","2148712","2,000.02","TPP - Alternative Provision of Education","130205530","02/03/2018","Looked After Children","Out of City - Pooled Budget","R5037"
"Wolverhampton City Council","http://opendatacommunities.org/id/metropolitan-district-council/wolverhampton","708037","The Mount Hotel (Aspen Leisure Limited)","334972","438.74","Hospitality","130209249","14/03/2018","Standards and Vulnerable Pupils","LEP-Leadership & Management Programme","R4612"
"Wolverhampton City Council","http://opendatacommunities.org/id/metropolitan-district-council/wolverhampton","708060","The Painsley Catholic Academy","P16852020180316","650.00","Grant Payments to Individuals","190437072","21/03/2018","Looked After Children","LAC Education Team (LACE)","R6402"
"Wolverhampton City Council","http://opendatacommunities.org/id/metropolitan-district-council/wolverhampton","708061","The Parish Centre At St Chads","JAN000629","30.00","Room Hire","130205894","07/03/2018","Community Safety","SWP - Locations","R2201"
"Wolverhampton City Council","http://opendatacommunities.org/id/metropolitan-district-council/wolverhampton","708075","The Potters Connection Limited","145773","16.72","Equipment - Purchase","130206368","14/03/2018","Adult Education","Creative Studies Delivery Area","R4000"
"Wolverhampton City Council","http://opendatacommunities.org/id/metropolitan-district-council/wolverhampton","708075","The Potters Connection Limited","145773","15.20","Equipment - Purchase","130206368","14/03/2018","Adult Education","Creative Studies Delivery Area","R4000"
"Wolverhampton City Council","http://opendatacommunities.org/id/metropolitan-district-council/wolverhampton","708075","The Potters Connection Limited","145749","74.50","Equipment - Purchase","130204967","02/03/2018","Adult Education","Creative Studies Delivery Area","R4000"
"Wolverhampton City Council","http://opendatacommunities.org/id/metropolitan-district-council/wolverhampton","708075","The Potters Connection Limited","145749","13.50","Comms - Postage","130204967","02/03/2018","Adult Education","Creative Studies Delivery Area","R4503"
"Wolverhampton City Council","http://opendatacommunities.org/id/metropolitan-district-council/wolverhampton","708080","The Prosecution Network Forum","2017/18/17051","50.00","Subscriptions","130209250","14/03/2018","Specialist Support","Vulnerable Young Persons Team","R4701"
"Wolverhampton City Council","http://opendatacommunities.org/id/metropolitan-district-council/wolverhampton","708080","The Prosecution Network Forum","2017/18/17052","50.00","Subscriptions","130210335","23/03/2018","Specialist Support","Vulnerable Young Persons Team","R4701"
"Wolverhampton City Council","http://opendatacommunities.org/id/metropolitan-district-council/wolverhampton","708082","The Queen Victoria Hotel","P16833620180313","756.00","TPP - Accommodation","190435163","14/03/2018","Older People Care Purchasing","OP Care Purchasing (Spot Placements)","R5603"
"Wolverhampton City Council","http://opendatacommunities.org/id/metropolitan-district-council/wolverhampton","708090","The Refugee And Migrant Centre Limited","956","4,333.00","TPP - Supporting People - Block Gross","130208715","14/03/2018","Housing Revenue Account","Single non statutory homelessness","R5451"
"Wolverhampton City Council","http://opendatacommunities.org/id/metropolitan-district-council/wolverhampton","708090","The Refugee And Migrant Centre Limited","971","1,970.00","TPP - Social Care Support Services","130210746","26/03/2018","Early Intervention","Transformation Challenge Award","R5501"
"Wolverhampton City Council","http://opendatacommunities.org/id/metropolitan-district-council/wolverhampton","708090","The Refugee And Migrant Centre Limited","948","5,567.00","TPP - Social Care Support Services","130210518","23/03/2018","Housing Revenue Account","Single non statutory homelessness","R5501"
"Wolverhampton City Council","http://opendatacommunities.org/id/metropolitan-district-council/wolverhampton","708099","The Royal Wolverhampton Hospitals","0000214823","2,497.00","TPP - Public Health Contracts","130208418","26/03/2018","Contracts","Healthy Start to Life","R5060"
"Wolverhampton City Council","http://opendatacommunities.org/id/metropolitan-district-council/wolverhampton","708099","The Royal Wolverhampton Hospitals","0000214819","18,184.00","TPP - Public Health Contracts","130208416","26/03/2018","Contracts","LA Role in Health Protection","R5060"
"Wolverhampton City Council","http://opendatacommunities.org/id/metropolitan-district-council/wolverhampton","708099","The Royal Wolverhampton Hospitals","0000214843","351,155.00","TPP - Public Health Contracts","130208420","26/03/2018","Contracts","Health Visiting 0-5 Year Olds","R5060"
"Wolverhampton City Council","http://opendatacommunities.org/id/metropolitan-district-council/wolverhampton","708099","The Royal Wolverhampton Hospitals","0000214889","2,517.17","TPP - Payments to Local Authorities","130208422","26/03/2018","Adults Assessment & Care Management West","Hospital Team","R5100"
"Wolverhampton City Council","http://opendatacommunities.org/id/metropolitan-district-council/wolverhampton","708099","The Royal Wolverhampton Hospitals","0000214077","44,217.64","TPP - Payments to Health Authorities","130205896","07/03/2018","Independent Living Service","Independent Living Service","R5101"
"Wolverhampton City Council","http://opendatacommunities.org/id/metropolitan-district-council/wolverhampton","708099","The Royal Wolverhampton Hospitals","0000214077","-44,217.64","TPP - Payments to Health Authorities","130205896","07/03/2018","Independent Living Service","Independent Living Service","R5101"
"Wolverhampton City Council","http://opendatacommunities.org/id/metropolitan-district-council/wolverhampton","708099","The Royal Wolverhampton Hospitals","0000214077","44,217.64","TPP - Payments to Health Authorities","130205896","07/03/2018","Independent Living Service","Independent Living Service","R5101"
"Wolverhampton City Council","http://opendatacommunities.org/id/metropolitan-district-council/wolverhampton","708099","The Royal Wolverhampton Hospitals","0000214659","41,376.21","TPP - Payments to Health Authorities","130207852","26/03/2018","Independent Living Service","Independent Living Service","R5101"
"Wolverhampton City Council","http://opendatacommunities.org/id/metropolitan-district-council/wolverhampton","708099","The Royal Wolverhampton Hospitals","0000214659","-41,376.21","TPP - Payments to Health Authorities","130207852","26/03/2018","Independent Living Service","Independent Living Service","R5101"
"Wolverhampton City Council","http://opendatacommunities.org/id/metropolitan-district-council/wolverhampton","708099","The Royal Wolverhampton Hospitals","0000214659","41,376.21","TPP - Payments to Health Authorities","130207852","26/03/2018","Independent Living Service","Independent Living Service","R5101"
"Wolverhampton City Council","http://opendatacommunities.org/id/metropolitan-district-council/wolverhampton","708099","The Royal Wolverhampton Hospitals","0000214343","9,999.00","TPP - Public Health Contracts","130207553","21/03/2018","Health Protection & NHS Facing","Health Protection & NHS Facing","R5060"
"Wolverhampton City Council","http://opendatacommunities.org/id/metropolitan-district-council/wolverhampton","708099","The Royal Wolverhampton Hospitals","0000214818","141,849.00","TPP - Public Health Contracts","130208415","26/03/2018","Contracts","Children 5-19","R5060"
"Wolverhampton City Council","http://opendatacommunities.org/id/metropolitan-district-council/wolverhampton","708099","The Royal Wolverhampton Hospitals","0000214820","1,776.00","TPP - Public Health Contracts","130208417","26/03/2018","Contracts","Alcohol and Drug","R5060"
"Wolverhampton City Council","http://opendatacommunities.org/id/metropolitan-district-council/wolverhampton","708099","The Royal Wolverhampton Hospitals","0000214328","3,471.34","TPP - Public Health Contracts","130207552","21/03/2018","Contracts","Children 5-19","R5060"
"Wolverhampton City Council","http://opendatacommunities.org/id/metropolitan-district-council/wolverhampton","708099","The Royal Wolverhampton Hospitals","0000214076","46,603.43","TPP - Payments to Health Authorities","130205895","07/03/2018","Independent Living Service","Independent Living Service","R5101"
"Wolverhampton City Council","http://opendatacommunities.org/id/metropolitan-district-council/wolverhampton","708099","The Royal Wolverhampton Hospitals","0000214076","-46,603.43","TPP - Payments to Health Authorities","130205895","07/03/2018","Independent Living Service","Independent Living Service","R5101"
"Wolverhampton City Council","http://opendatacommunities.org/id/metropolitan-district-council/wolverhampton","708099","The Royal Wolverhampton Hospitals","0000214076","46,603.43","TPP - Payments to Health Authorities","130205895","07/03/2018","Independent Living Service","Independent Living Service","R5101"
"Wolverhampton City Council","http://opendatacommunities.org/id/metropolitan-district-council/wolverhampton","708099","The Royal Wolverhampton Hospitals","0000214856","192,956.00","TPP - Public Health Contracts","130208421","26/03/2018","Contracts","Sexual Health","R5060"
"Wolverhampton City Council","http://opendatacommunities.org/id/metropolitan-district-council/wolverhampton","708099","The Royal Wolverhampton Hospitals","0000214890","3,882.92","TPP - Payments to Local Authorities","130208423","26/03/2018","Adults Assessment & Care Management West","Hospital Team","R5100"
"Wolverhampton City Council","http://opendatacommunities.org/id/metropolitan-district-council/wolverhampton","708099","The Royal Wolverhampton Hospitals","0000214835","8,917.00","TPP - Public Health Contracts","130208419","26/03/2018","Contracts","LA Role in Health Protection","R5060"
"Wolverhampton City Council","http://opendatacommunities.org/id/metropolitan-district-council/wolverhampton","708101","The Royal Wolverhampton School","P16808120180313","650.00","Grant Payments to Individuals","190435204","14/03/2018","Looked After Children","LAC Education Team (LACE)","R6402"
"Wolverhampton City Council","http://opendatacommunities.org/id/metropolitan-district-council/wolverhampton","708101","The Royal Wolverhampton School","P16808120180313","650.00","Grant Payments to Individuals","190435204","14/03/2018","Looked After Children","LAC Education Team (LACE)","R6402"
"Wolverhampton City Council","http://opendatacommunities.org/id/metropolitan-district-council/wolverhampton","708101","The Royal Wolverhampton School","P16808120180313","650.00","Grant Payments to Individuals","190435204","14/03/2018","Looked After Children","LAC Education Team (LACE)","R6402"
"Wolverhampton City Council","http://opendatacommunities.org/id/metropolitan-district-council/wolverhampton","708101","The Royal Wolverhampton School","P16808120180313","650.00","Grant Payments to Individuals","190435204","14/03/2018","Looked After Children","LAC Education Team (LACE)","R6402"
"Wolverhampton City Council","http://opendatacommunities.org/id/metropolitan-district-council/wolverhampton","708101","The Royal Wolverhampton School","P16852520180316","143.70","TPP - Supported Living","190437077","21/03/2018","Looked After Children","LAC Transitions Team","R5422"
"Wolverhampton City Council","http://opendatacommunities.org/id/metropolitan-district-council/wolverhampton","708101","The Royal Wolverhampton School","P16906220180323","143.70","TPP - Supported Living","190441088","26/03/2018","Looked After Children","LAC Transitions Team","R5422"
"Wolverhampton City Council","http://opendatacommunities.org/id/metropolitan-district-council/wolverhampton","708101","The Royal Wolverhampton School","P16724220180305","143.70","Client Allowances","190431942","07/03/2018","Looked After Children","LAC Transitions Team","R6301"
"Wolverhampton City Council","http://opendatacommunities.org/id/metropolitan-district-council/wolverhampton","708101","The Royal Wolverhampton School","P16815620180313","143.70","TPP - Supported Living","190435208","14/03/2018","Looked After Children","LAC Transitions Team","R5422"
"Wolverhampton City Council","http://opendatacommunities.org/id/metropolitan-district-council/wolverhampton","708130","The Switch Project Limited","TSP024-18","385.00","TPP - Alternative Provision of Education","130210073","21/03/2018","Specialist Support","Alternative Provision","R5037"
"Wolverhampton City Council","http://opendatacommunities.org/id/metropolitan-district-council/wolverhampton","708130","The Switch Project Limited","TSP029-18","660.00","TPP - Alternative Provision of Education","130210076","21/03/2018","Specialist Support","Alternative Provision","R5037"
"Wolverhampton City Council","http://opendatacommunities.org/id/metropolitan-district-council/wolverhampton","708130","The Switch Project Limited","TSP025-18","605.00","TPP - Alternative Provision of Education","130210074","21/03/2018","Specialist Support","Alternative Provision","R5037"
"Wolverhampton City Council","http://opendatacommunities.org/id/metropolitan-district-council/wolverhampton","708130","The Switch Project Limited","TSP026-18","1,265.00","TPP - Alternative Provision of Education","130210075","21/03/2018","Specialist Support","Alternative Provision","R5037"
"Wolverhampton City Council","http://opendatacommunities.org/id/metropolitan-district-council/wolverhampton","708134","The Terrence Higgins Trust","29003038","4,166.67","TPP - Home Care","130207853","26/03/2018","Head of Commissioning","Terence Higgins Trust","R5420"
"Wolverhampton City Council","http://opendatacommunities.org/id/metropolitan-district-council/wolverhampton","708155","The Woodsetton School","P16852020180316","650.00","Grant Payments to Individuals","190437072","21/03/2018","Looked After Children","LAC Education Team (LACE)","R6402"
"Wolverhampton City Council","http://opendatacommunities.org/id/metropolitan-district-council/wolverhampton","708173","Thomas Telford School","P16723920180305","600.00","Grant Payments to Individuals","190431938","07/03/2018","Looked After Children","LAC Education Team (LACE)","R6402"
"Wolverhampton City Council","http://opendatacommunities.org/id/metropolitan-district-council/wolverhampton","708173","Thomas Telford School","P16723920180305","650.00","Grant Payments to Individuals","190431938","07/03/2018","Looked After Children","LAC Education Team (LACE)","R6402"
"Wolverhampton City Council","http://opendatacommunities.org/id/metropolitan-district-council/wolverhampton","708176","Thompson Avc Limited","35271","65.00","R&M - Departmental planned (external)","130209443","21/03/2018","Facilities Management","Culwell Street Depot","R2001"
"Wolverhampton City Council","http://opendatacommunities.org/id/metropolitan-district-council/wolverhampton","708176","Thompson Avc Limited","35225","105.00","R&M - Departmental planned (external)","130209437","21/03/2018","Markets","Wholesale Market Facilities Management","R2001"
"Wolverhampton City Council","http://opendatacommunities.org/id/metropolitan-district-council/wolverhampton","708176","Thompson Avc Limited","35179","95.00","Fixtures and Fittings - R&M","130208890","14/03/2018","Environmental Maintenance","Ground Maintenance East","R2502"
"Wolverhampton City Council","http://opendatacommunities.org/id/metropolitan-district-council/wolverhampton","708176","Thompson Avc Limited","35248","65.00","R&M - Departmental planned (external)","130209442","21/03/2018","Markets","Wholesale Market Facilities Management","R2001"
"Wolverhampton City Council","http://opendatacommunities.org/id/metropolitan-district-council/wolverhampton","708176","Thompson Avc Limited","35226","145.00","R&M - Departmental planned (external)","130209438","21/03/2018","Facilities Management","Hickman Avenue Depot","R2001"
"Wolverhampton City Council","http://opendatacommunities.org/id/metropolitan-district-council/wolverhampton","708176","Thompson Avc Limited","35153","274.80","Fixtures and Fittings - R&M","130208540","14/03/2018","Markets","Wholesale Market Facilities Management","R2502"
"Wolverhampton City Council","http://opendatacommunities.org/id/metropolitan-district-council/wolverhampton","708176","Thompson Avc Limited","35245","95.00","R&M - Departmental planned (external)","130209441","21/03/2018","Facilities Management","Culwell Street Depot","R2001"
"Wolverhampton City Council","http://opendatacommunities.org/id/metropolitan-district-council/wolverhampton","708176","Thompson Avc Limited","35099","64.80","R&M - Departmental planned (external)","130208058","07/03/2018","Markets","Wholesale Market Facilities Management","R2001"
"Wolverhampton City Council","http://opendatacommunities.org/id/metropolitan-district-council/wolverhampton","708176","Thompson Avc Limited","35244","125.00","R&M - Departmental planned (external)","130209440","16/03/2018","Cleaning","Priory Green","R2001"
"Wolverhampton City Council","http://opendatacommunities.org/id/metropolitan-district-council/wolverhampton","708176","Thompson Avc Limited","35049","65.00","R&M - Departmental planned (external)","130207702","14/03/2018","Facilities Management","Culwell Street Depot","R2001"
"Wolverhampton City Council","http://opendatacommunities.org/id/metropolitan-district-council/wolverhampton","708176","Thompson Avc Limited","35305","5,303.40","Computing - Purchase of Hardware","130210077","23/03/2018","ICTS","Strategic ICTS (ICT Service Budget)","R4530"
"Wolverhampton City Council","http://opendatacommunities.org/id/metropolitan-district-council/wolverhampton","708176","Thompson Avc Limited","35078","790.00","Computing - Purchase of Hardware","130207703","07/03/2018","ICTS","Strategic ICTS (ICT Service Budget)","R4530"
"Wolverhampton City Council","http://opendatacommunities.org/id/metropolitan-district-council/wolverhampton","708176","Thompson Avc Limited","35281","1,126.20","R&M - Departmental planned (external)","130209444","21/03/2018","Markets","Wholesale Market Facilities Management","R2001"
"Wolverhampton City Council","http://opendatacommunities.org/id/metropolitan-district-council/wolverhampton","708176","Thompson Avc Limited","35243","66.76","R&M - Departmental planned (external)","130209439","21/03/2018","Markets","Wholesale Market Facilities Management","R2001"
"Wolverhampton City Council","http://opendatacommunities.org/id/metropolitan-district-council/wolverhampton","708177","Thompson Solicitors","My ref: EL130014/ER4 Your ref: G12J0010","9,375.00","Insurance - General","190433131","09/03/2018","Audit Services","Legal Liability","R4962"
"Wolverhampton City Council","http://opendatacommunities.org/id/metropolitan-district-council/wolverhampton","708185","Three Pines Building Co Limited","49873","3,268.16","Construction and Conversion","130208541","14/03/2018","","Capital Maintenance - Structural Works","C1100"
"Wolverhampton City Council","http://opendatacommunities.org/id/metropolitan-district-council/wolverhampton","708185","Three Pines Building Co Limited","49789","4,687.32","Construction and Conversion","130205726","21/03/2018","","Adaptations for People with Disabilites","C1100"
"Wolverhampton City Council","http://opendatacommunities.org/id/metropolitan-district-council/wolverhampton","708185","Three Pines Building Co Limited","16/0233/DFG","10,940.56","Grants paid out","190437895","21/03/2018","","Disabled Facilities Grants","C5000"
"Wolverhampton City Council","http://opendatacommunities.org/id/metropolitan-district-council/wolverhampton","708198","Time Right Limited","SIN083673","45.00","Services - Fees and Charges","130208238","26/03/2018","Environmental Maintenance","Ground Maintenance East","R4401"
"Wolverhampton City Council","http://opendatacommunities.org/id/metropolitan-district-council/wolverhampton","708217","Tlc College Neighbourhood Nursery","1665","33.00","TPP - Child Care provided for client","130208544","16/03/2018","Adult Education","Discretionary Fund","R5034"
"Wolverhampton City Council","http://opendatacommunities.org/id/metropolitan-district-council/wolverhampton","708217","Tlc College Neighbourhood Nursery","1666","26.40","TPP - Child Care provided for client","130208545","16/03/2018","Adult Education","Discretionary Fund","R5034"
"Wolverhampton City Council","http://opendatacommunities.org/id/metropolitan-district-council/wolverhampton","708217","Tlc College Neighbourhood Nursery","TFT Spring 2018 Inst 2","4,396.36","TPP - Private Nursery Education Funding","190439893","23/03/2018","Early Years","Early Years Entitlement Funding for Disadvantaged 2 Year Olds","R5035"
"Wolverhampton City Council","http://opendatacommunities.org/id/metropolitan-district-council/wolverhampton","708217","Tlc College Neighbourhood Nursery","EYPP Spring 2018","1,908.00","TPP - Private Nursery Education Funding","190441753","26/03/2018","Early Years","Early Years Pupil Premium","R5035"
"Wolverhampton City Council","http://opendatacommunities.org/id/metropolitan-district-council/wolverhampton","708217","Tlc College Neighbourhood Nursery","NEF Spring 2018 INST 2","18,777.92","TPP - Private Nursery Education Funding","190439901","23/03/2018","Early Years","Early Years Universal Entitlement for 3 and 4 Year Olds","R5035"
"Wolverhampton City Council","http://opendatacommunities.org/id/metropolitan-district-council/wolverhampton","708251","Total Gas & Power Limited","166183110a","18.49","Electricity","190440035","23/03/2018","Corporate Asset Management","Central Utilities to Recharge","R2100"
"Wolverhampton City Council","http://opendatacommunities.org/id/metropolitan-district-council/wolverhampton","708251","Total Gas & Power Limited","166182593a","704.98","Electricity","190440143","23/03/2018","Schools","Colton Hills Community School","R2100"
"Wolverhampton City Council","http://opendatacommunities.org/id/metropolitan-district-council/wolverhampton","708251","Total Gas & Power Limited","166158690a","237.62","Electricity","190440102","23/03/2018","Schools","Trinity Church of England Primary School","R2100"
"Wolverhampton City Council","http://opendatacommunities.org/id/metropolitan-district-council/wolverhampton","708251","Total Gas & Power Limited","166159647a","295.42","Electricity","190440115","23/03/2018","Corporate Asset Management","Central Utilities to Recharge","R2100"
"Wolverhampton City Council","http://opendatacommunities.org/id/metropolitan-district-council/wolverhampton","708251","Total Gas & Power Limited","166159449a","453.49","Electricity","190440111","23/03/2018","Schools","Wodensfield Primary School","R2100"
"Wolverhampton City Council","http://opendatacommunities.org/id/metropolitan-district-council/wolverhampton","708251","Total Gas & Power Limited","166366117a","1,074.97","Electricity","190440226","23/03/2018","Corporate Asset Management","Central Utilities to Recharge","R2100"
"Wolverhampton City Council","http://opendatacommunities.org/id/metropolitan-district-council/wolverhampton","708251","Total Gas & Power Limited","166286444a","1,814.69","Electricity","190440199","23/03/2018","Corporate Asset Management","Central Utilities to Recharge","R2100"
"Wolverhampton City Council","http://opendatacommunities.org/id/metropolitan-district-council/wolverhampton","708251","Total Gas & Power Limited","166182758a","425.72","Electricity","190440146","23/03/2018","Corporate Asset Management","Central Utilities to Recharge","R2100"
"Wolverhampton City Council","http://opendatacommunities.org/id/metropolitan-district-council/wolverhampton","708251","Total Gas & Power Limited","166183484a","2,518.70","Electricity","190440168","23/03/2018","Corporate Asset Management","Central Utilities to Recharge","R2100"
"Wolverhampton City Council","http://opendatacommunities.org/id/metropolitan-district-council/wolverhampton","708251","Total Gas & Power Limited","166198180a","514.67","Electricity","190440174","23/03/2018","Corporate Asset Management","Central Utilities to Recharge","R2100"
"Wolverhampton City Council","http://opendatacommunities.org/id/metropolitan-district-council/wolverhampton","708251","Total Gas & Power Limited","166233523a","220.76","Electricity","190440192","23/03/2018","Corporate Asset Management","Central Utilities to Recharge","R2100"
"Wolverhampton City Council","http://opendatacommunities.org/id/metropolitan-district-council/wolverhampton","708251","Total Gas & Power Limited","166182824a","539.66","Electricity","190440148","23/03/2018","Corporate Asset Management","Central Utilities to Recharge","R2100"
"Wolverhampton City Council","http://opendatacommunities.org/id/metropolitan-district-council/wolverhampton","708251","Total Gas & Power Limited","166183143a","1,310.03","Electricity","190440156","23/03/2018","Corporate Asset Management","Central Utilities to Recharge","R2100"
"Wolverhampton City Council","http://opendatacommunities.org/id/metropolitan-district-council/wolverhampton","708251","Total Gas & Power Limited","166174178a","331.91","Electricity","190440136","23/03/2018","Corporate Asset Management","Central Utilities to Recharge","R2100"
"Wolverhampton City Council","http://opendatacommunities.org/id/metropolitan-district-council/wolverhampton","708251","Total Gas & Power Limited","166233006a","141.59","Electricity","190440186","23/03/2018","Corporate Asset Management","Central Utilities to Recharge","R2100"
"Wolverhampton City Council","http://opendatacommunities.org/id/metropolitan-district-council/wolverhampton","708251","Total Gas & Power Limited","166183132a","472.09","Electricity","190440155","23/03/2018","Facilities Management","Management of Vacant Properties","R2100"
"Wolverhampton City Council","http://opendatacommunities.org/id/metropolitan-district-council/wolverhampton","708251","Total Gas & Power Limited","166182791a","80.77","Electricity","190440031","23/03/2018","Schools","Bilston Nursery","R2100"
"Wolverhampton City Council","http://opendatacommunities.org/id/metropolitan-district-council/wolverhampton","708251","Total Gas & Power Limited","166366216a","1,572.00","Electricity","190440232","23/03/2018","Corporate Asset Management","Central Utilities to Recharge","R2100"
"Wolverhampton City Council","http://opendatacommunities.org/id/metropolitan-district-council/wolverhampton","708251","Total Gas & Power Limited","166199192a","1,965.92","Electricity","190440180","23/03/2018","Corporate Asset Management","Central Utilities to Recharge","R2100"
"Wolverhampton City Council","http://opendatacommunities.org/id/metropolitan-district-council/wolverhampton","708251","Total Gas & Power Limited","166199115a","609.45","Electricity","190440179","23/03/2018","Schools","Bantock Primary School","R2100"
"Wolverhampton City Council","http://opendatacommunities.org/id/metropolitan-district-council/wolverhampton","708251","Total Gas & Power Limited","166198345a","586.75","Electricity","190440176","23/03/2018","Corporate Asset Management","Central Utilities to Recharge","R2100"
"Wolverhampton City Council","http://opendatacommunities.org/id/metropolitan-district-council/wolverhampton","708251","Total Gas & Power Limited","166232863a","160.46","Electricity","190440184","23/03/2018","Schools","Villiers Primary School","R2100"
"Wolverhampton City Council","http://opendatacommunities.org/id/metropolitan-district-council/wolverhampton","708251","Total Gas & Power Limited","166159890a","52.03","Electricity","190439999","23/03/2018","Facilities Management","Management of Vacant Properties","R2100"
"Wolverhampton City Council","http://opendatacommunities.org/id/metropolitan-district-council/wolverhampton","708251","Total Gas & Power Limited","166199247a","12.72","Electricity","190440066","23/03/2018","Corporate Asset Management","Central Utilities to Recharge","R2100"
"Wolverhampton City Council","http://opendatacommunities.org/id/metropolitan-district-council/wolverhampton","708251","Total Gas & Power Limited","166173496a","424.42","Electricity","190440011","23/03/2018","Corporate Asset Management","Central Utilities to Recharge","R2100"
"Wolverhampton City Council","http://opendatacommunities.org/id/metropolitan-district-council/wolverhampton","708251","Total Gas & Power Limited","166174585a","88.82","Electricity","190440025","23/03/2018","Schools","Penn Hall Special School","R2100"
"Wolverhampton City Council","http://opendatacommunities.org/id/metropolitan-district-council/wolverhampton","708251","Total Gas & Power Limited","166233919a","39.39","Electricity","190440073","23/03/2018","Corporate Asset Management","Central Utilities to Recharge","R2100"
"Wolverhampton City Council","http://opendatacommunities.org/id/metropolitan-district-council/wolverhampton","708251","Total Gas & Power Limited","166174453a","28.98","Electricity","190440022","23/03/2018","Schools","Woodthorne Primary School","R2100"
"Wolverhampton City Council","http://opendatacommunities.org/id/metropolitan-district-council/wolverhampton","708251","Total Gas & Power Limited","166365556a","84.51","Electricity","190440089","23/03/2018","Corporate Asset Management","Central Utilities to Recharge","R2100"
"Wolverhampton City Council","http://opendatacommunities.org/id/metropolitan-district-council/wolverhampton","708251","Total Gas & Power Limited","166233820a","13.41","Electricity","190440072","23/03/2018","Schools","Bilston Church of England Primary School","R2100"
"Wolverhampton City Council","http://opendatacommunities.org/id/metropolitan-district-council/wolverhampton","708251","Total Gas & Power Limited","166158844a","776.62","Electricity","190440104","23/03/2018","Corporate Asset Management","Central Utilities to Recharge","R2100"
"Wolverhampton City Council","http://opendatacommunities.org/id/metropolitan-district-council/wolverhampton","708251","Total Gas & Power Limited","166159097a","210.94","Electricity","190439987","23/03/2018","Corporate Asset Management","Central Utilities to Recharge","R2100"
"Wolverhampton City Council","http://opendatacommunities.org/id/metropolitan-district-council/wolverhampton","708251","Total Gas & Power Limited","166286279a","179.87","Electricity","190440197","23/03/2018","Corporate Asset Management","Central Utilities to Recharge","R2100"
"Wolverhampton City Council","http://opendatacommunities.org/id/metropolitan-district-council/wolverhampton","708251","Total Gas & Power Limited","165291835a","627.45","Electricity","190440096","23/03/2018","Schools","Warstones Primary School","R2100"
"Wolverhampton City Council","http://opendatacommunities.org/id/metropolitan-district-council/wolverhampton","708251","Total Gas & Power Limited","165306180a","529.14","Electricity","190440097","23/03/2018","Schools","St Michael�s Church of England Primary School","R2100"
"Wolverhampton City Council","http://opendatacommunities.org/id/metropolitan-district-council/wolverhampton","708251","Total Gas & Power Limited","166159053a","202.86","Electricity","190440107","23/03/2018","Corporate Asset Management","Central Utilities to Recharge","R2100"
"Wolverhampton City Council","http://opendatacommunities.org/id/metropolitan-district-council/wolverhampton","708251","Total Gas & Power Limited","166286642a","68.64","Electricity","190440081","23/03/2018","Corporate Asset Management","Central Utilities to Recharge","R2100"
"Wolverhampton City Council","http://opendatacommunities.org/id/metropolitan-district-council/wolverhampton","708251","Total Gas & Power Limited","166159361a","566.29","Electricity","190440110","23/03/2018","Schools","St Paul�s Church of England (Aided) School","R2100"
"Wolverhampton City Council","http://opendatacommunities.org/id/metropolitan-district-council/wolverhampton","708251","Total Gas & Power Limited","166197839a","55.58","Electricity","190440053","23/03/2018","Corporate Asset Management","Central Utilities to Recharge","R2100"
"Wolverhampton City Council","http://opendatacommunities.org/id/metropolitan-district-council/wolverhampton","708251","Total Gas & Power Limited","166197575a","94.00","Electricity","190440048","23/03/2018","Corporate Asset Management","Central Utilities to Recharge","R2100"
"Wolverhampton City Council","http://opendatacommunities.org/id/metropolitan-district-council/wolverhampton","708251","Total Gas & Power Limited","166183220a","313.70","Electricity","190440040","23/03/2018","Schools","West Park Primary School","R2100"
"Wolverhampton City Council","http://opendatacommunities.org/id/metropolitan-district-council/wolverhampton","708251","Total Gas & Power Limited","166198840a","59.07","Electricity","190440060","23/03/2018","Corporate Asset Management","Central Utilities to Recharge","R2100"
"Wolverhampton City Council","http://opendatacommunities.org/id/metropolitan-district-council/wolverhampton","708251","Total Gas & Power Limited","166198950a","8.88","Electricity","190440061","23/03/2018","Corporate Asset Management","Central Utilities to Recharge","R2100"
"Wolverhampton City Council","http://opendatacommunities.org/id/metropolitan-district-council/wolverhampton","708251","Total Gas & Power Limited","166198235a","12.71","Electricity","190440056","23/03/2018","Corporate Asset Management","Central Utilities to Recharge","R2100"
"Wolverhampton City Council","http://opendatacommunities.org/id/metropolitan-district-council/wolverhampton","708251","Total Gas & Power Limited","166199027a","57.63","Electricity","190440063","23/03/2018","Transportation","Bridges & Subways","R2100"
"Wolverhampton City Council","http://opendatacommunities.org/id/metropolitan-district-council/wolverhampton","708251","Total Gas & Power Limited","166183320a","1,500.46","Electricity","190440042","23/03/2018","Corporate Asset Management","Central Utilities to Recharge","R2100"
"Wolverhampton City Council","http://opendatacommunities.org/id/metropolitan-district-council/wolverhampton","708251","Total Gas & Power Limited","166198741a","101.40","Electricity","190440059","23/03/2018","Corporate Asset Management","Central Utilities to Recharge","R2100"
"Wolverhampton City Council","http://opendatacommunities.org/id/metropolitan-district-council/wolverhampton","708251","Total Gas & Power Limited","166174706a","74.55","Electricity","190440026","23/03/2018","Corporate Asset Management","Central Utilities to Recharge","R2100"
"Wolverhampton City Council","http://opendatacommunities.org/id/metropolitan-district-council/wolverhampton","708251","Total Gas & Power Limited","166159196a","95.17","Electricity","190439992","23/03/2018","Corporate Asset Management","Central Utilities to Recharge","R2100"
"Wolverhampton City Council","http://opendatacommunities.org/id/metropolitan-district-council/wolverhampton","708251","Total Gas & Power Limited","166170724a","15.93","Electricity","190440008","23/03/2018","Corporate Asset Management","Central Utilities to Recharge","R2100"
"Wolverhampton City Council","http://opendatacommunities.org/id/metropolitan-district-council/wolverhampton","708251","Total Gas & Power Limited","166173892a","1,003.51","Electricity","190440017","23/03/2018","Corporate Asset Management","Central Utilities to Recharge","R2100"
"Wolverhampton City Council","http://opendatacommunities.org/id/metropolitan-district-council/wolverhampton","708251","Total Gas & Power Limited","166158350a","66.01","Electricity","190439982","23/03/2018","Corporate Asset Management","Central Utilities to Recharge","R2100"
"Wolverhampton City Council","http://opendatacommunities.org/id/metropolitan-district-council/wolverhampton","708251","Total Gas & Power Limited","166170394a","653.31","Electricity","190440005","23/03/2018","Schools","Bushbury Nursery","R2100"
"Wolverhampton City Council","http://opendatacommunities.org/id/metropolitan-district-council/wolverhampton","708251","Total Gas & Power Limited","166365611a","407.41","Electricity","190440090","23/03/2018","Corporate Asset Management","Central Utilities to Recharge","R2100"
"Wolverhampton City Council","http://opendatacommunities.org/id/metropolitan-district-council/wolverhampton","708251","Total Gas & Power Limited","166169668a","218.57","Electricity","190440119","23/03/2018","Corporate Asset Management","Central Utilities to Recharge","R2100"
"Wolverhampton City Council","http://opendatacommunities.org/id/metropolitan-district-council/wolverhampton","708251","Total Gas & Power Limited","166123853","69.37","Gas","190437381","09/03/2018","Corporate Asset Management","Central Utilities to Recharge","R2101"
"Wolverhampton City Council","http://opendatacommunities.org/id/metropolitan-district-council/wolverhampton","708251","Total Gas & Power Limited","166123666","478.57","Gas","190437362","09/03/2018","Corporate Asset Management","Central Utilities to Recharge","R2101"
"Wolverhampton City Council","http://opendatacommunities.org/id/metropolitan-district-council/wolverhampton","708251","Total Gas & Power Limited","166123930","78.46","Gas","190437389","09/03/2018","Corporate Asset Management","Central Utilities to Recharge","R2101"
"Wolverhampton City Council","http://opendatacommunities.org/id/metropolitan-district-council/wolverhampton","708251","Total Gas & Power Limited","166123776","155.65","Gas","190437373","09/03/2018","Corporate Asset Management","Central Utilities to Recharge","R2101"
"Wolverhampton City Council","http://opendatacommunities.org/id/metropolitan-district-council/wolverhampton","708251","Total Gas & Power Limited","166123457","199.50","Gas","190437341","09/03/2018","Corporate Asset Management","Central Utilities to Recharge","R2101"
"Wolverhampton City Council","http://opendatacommunities.org/id/metropolitan-district-council/wolverhampton","708251","Total Gas & Power Limited","166123578","75.00","Gas","190437353","09/03/2018","Facilities Management","Management of Vacant Properties","R2101"
"Wolverhampton City Council","http://opendatacommunities.org/id/metropolitan-district-council/wolverhampton","708251","Total Gas & Power Limited","166123424","68.90","Gas","190437338","09/03/2018","Schools","Penn Hall Special School","R2101"
"Wolverhampton City Council","http://opendatacommunities.org/id/metropolitan-district-council/wolverhampton","708251","Total Gas & Power Limited","166070437","214.82","Gas","190437239","09/03/2018","Corporate Asset Management","Central Utilities to Recharge","R2101"
"Wolverhampton City Council","http://opendatacommunities.org/id/metropolitan-district-council/wolverhampton","708251","Total Gas & Power Limited","166078599","3,883.36","Gas","190437265","09/03/2018","Corporate Asset Management","Central Utilities to Recharge","R2101"
"Wolverhampton City Council","http://opendatacommunities.org/id/metropolitan-district-council/wolverhampton","708251","Total Gas & Power Limited","166078632","1,133.25","Gas","190437269","09/03/2018","Corporate Asset Management","Central Utilities to Recharge","R2101"
"Wolverhampton City Council","http://opendatacommunities.org/id/metropolitan-district-council/wolverhampton","708251","Total Gas & Power Limited","166078698","1,911.21","Gas","190437275","09/03/2018","Corporate Asset Management","Central Utilities to Recharge","R2101"
"Wolverhampton City Council","http://opendatacommunities.org/id/metropolitan-district-council/wolverhampton","708251","Total Gas & Power Limited","166070492","93.13","Gas","190437243","09/03/2018","Corporate Asset Management","Central Utilities to Recharge","R2101"
"Wolverhampton City Council","http://opendatacommunities.org/id/metropolitan-district-council/wolverhampton","708251","Total Gas & Power Limited","166070525","79.29","Gas","190437246","09/03/2018","Schools","Trinity Church of England Primary School","R2101"
"Wolverhampton City Council","http://opendatacommunities.org/id/metropolitan-district-council/wolverhampton","708251","Total Gas & Power Limited","166070591","80.44","Gas","190437252","09/03/2018","Corporate Asset Management","Central Utilities to Recharge","R2101"
"Wolverhampton City Council","http://opendatacommunities.org/id/metropolitan-district-council/wolverhampton","708251","Total Gas & Power Limited","166123215","47.71","Gas","190437319","09/03/2018","Schools","St Thomas� Church of England Primary School","R2101"
"Wolverhampton City Council","http://opendatacommunities.org/id/metropolitan-district-council/wolverhampton","708251","Total Gas & Power Limited","166124250","1,156.08","Gas","190437421","09/03/2018","Corporate Asset Management","Central Utilities to Recharge","R2101"
"Wolverhampton City Council","http://opendatacommunities.org/id/metropolitan-district-council/wolverhampton","708251","Total Gas & Power Limited","166078808","3,006.84","Gas","190437285","09/03/2018","Corporate Asset Management","Central Utilities to Recharge","R2101"
"Wolverhampton City Council","http://opendatacommunities.org/id/metropolitan-district-council/wolverhampton","708251","Total Gas & Power Limited","166123259","614.99","Gas","190437322","09/03/2018","Schools","Wodensfield Primary School","R2101"
"Wolverhampton City Council","http://opendatacommunities.org/id/metropolitan-district-council/wolverhampton","708251","Total Gas & Power Limited","166123061","79.15","Gas","190437305","09/03/2018","Corporate Asset Management","Central Utilities to Recharge","R2101"
"Wolverhampton City Council","http://opendatacommunities.org/id/metropolitan-district-council/wolverhampton","708251","Total Gas & Power Limited","166123138","35.53","Gas","190437312","09/03/2018","Schools","Warstones Primary School","R2101"
"Wolverhampton City Council","http://opendatacommunities.org/id/metropolitan-district-council/wolverhampton","708251","Total Gas & Power Limited","166123688","23.52","Gas","190437364","09/03/2018","Corporate Asset Management","Central Utilities to Recharge","R2101"
"Wolverhampton City Council","http://opendatacommunities.org/id/metropolitan-district-council/wolverhampton","708251","Total Gas & Power Limited","166078841","1,284.23","Gas","190437289","09/03/2018","Schools","Dovecotes Primary School","R2101"
"Wolverhampton City Council","http://opendatacommunities.org/id/metropolitan-district-council/wolverhampton","708251","Total Gas & Power Limited","166078907","390.10","Gas","190437295","09/03/2018","Schools","Christ Church (Church of England) Junior School","R2101"
"Wolverhampton City Council","http://opendatacommunities.org/id/metropolitan-district-council/wolverhampton","708251","Total Gas & Power Limited","166078951","76.98","Gas","190437300","09/03/2018","Corporate Asset Management","Central Utilities to Recharge","R2101"
"Wolverhampton City Council","http://opendatacommunities.org/id/metropolitan-district-council/wolverhampton","708251","Total Gas & Power Limited","166124073","412.71","Gas","190437403","09/03/2018","Schools","Holy Trinity Catholic Primary School","R2101"
"Wolverhampton City Council","http://opendatacommunities.org/id/metropolitan-district-council/wolverhampton","708251","Total Gas & Power Limited","166124139","23.52","Gas","190437409","09/03/2018","Corporate Asset Management","Central Utilities to Recharge","R2101"
"Wolverhampton City Council","http://opendatacommunities.org/id/metropolitan-district-council/wolverhampton","708251","Total Gas & Power Limited","166124018","126.27","Gas","190437397","09/03/2018","Corporate Asset Management","Central Utilities to Recharge","R2101"
"Wolverhampton City Council","http://opendatacommunities.org/id/metropolitan-district-council/wolverhampton","708251","Total Gas & Power Limited","166124315","290.15","Gas","190437427","09/03/2018","Corporate Asset Management","Central Utilities to Recharge","R2101"
"Wolverhampton City Council","http://opendatacommunities.org/id/metropolitan-district-council/wolverhampton","708251","Total Gas & Power Limited","166124436","98.56","Gas","190437439","09/03/2018","Corporate Asset Management","Central Utilities to Recharge","R2101"
"Wolverhampton City Council","http://opendatacommunities.org/id/metropolitan-district-council/wolverhampton","708251","Total Gas & Power Limited","166124007","35.37","Gas","190437396","09/03/2018","Corporate Asset Management","Central Utilities to Recharge","R2101"
"Wolverhampton City Council","http://opendatacommunities.org/id/metropolitan-district-council/wolverhampton","708251","Total Gas & Power Limited","166123655","70.89","Gas","190437361","09/03/2018","Corporate Asset Management","Central Utilities to Recharge","R2101"
"Wolverhampton City Council","http://opendatacommunities.org/id/metropolitan-district-council/wolverhampton","708251","Total Gas & Power Limited","166123765","97.99","Gas","190437372","09/03/2018","Corporate Asset Management","Central Utilities to Recharge","R2101"
"Wolverhampton City Council","http://opendatacommunities.org/id/metropolitan-district-council/wolverhampton","708251","Total Gas & Power Limited","166123920","69.84","Gas","190437388","09/03/2018","Corporate Asset Management","Central Utilities to Recharge","R2101"
"Wolverhampton City Council","http://opendatacommunities.org/id/metropolitan-district-council/wolverhampton","708251","Total Gas & Power Limited","166123842","163.26","Gas","190437380","09/03/2018","Corporate Asset Management","Central Utilities to Recharge","R2101"
"Wolverhampton City Council","http://opendatacommunities.org/id/metropolitan-district-council/wolverhampton","708251","Total Gas & Power Limited","166233985a","1,110.08","Electricity","190440196","23/03/2018","Schools","Oak Meadow Primary School","R2100"
"Wolverhampton City Council","http://opendatacommunities.org/id/metropolitan-district-council/wolverhampton","708251","Total Gas & Power Limited","166183594a","1,485.75","Electricity","190440170","23/03/2018","Corporate Asset Management","Central Utilities to Recharge","R2100"
"Wolverhampton City Council","http://opendatacommunities.org/id/metropolitan-district-council/wolverhampton","708251","Total Gas & Power Limited","166366084a","1,524.14","Electricity","190440223","23/03/2018","Corporate Asset Management","Central Utilities to Recharge","R2100"
"Wolverhampton City Council","http://opendatacommunities.org/id/metropolitan-district-council/wolverhampton","708251","Total Gas & Power Limited","166366238a","2,375.32","Electricity","190440234","23/03/2018","Schools","Bantock Primary School","R2100"
"Wolverhampton City Council","http://opendatacommunities.org/id/metropolitan-district-council/wolverhampton","708251","Total Gas & Power Limited","166173309a","34.04","Electricity","190440010","23/03/2018","Schools","St Patrick�s Catholic Primary School","R2100"
"Wolverhampton City Council","http://opendatacommunities.org/id/metropolitan-district-council/wolverhampton","708251","Total Gas & Power Limited","166286268a","36.40","Electricity","190440078","23/03/2018","Corporate Asset Management","Central Utilities to Recharge","R2100"
"Wolverhampton City Council","http://opendatacommunities.org/id/metropolitan-district-council/wolverhampton","708251","Total Gas & Power Limited","166170416a","27.20","Electricity","190440006","23/03/2018","Corporate Asset Management","Central Utilities to Recharge","R2100"
"Wolverhampton City Council","http://opendatacommunities.org/id/metropolitan-district-council/wolverhampton","708251","Total Gas & Power Limited","166182945a","35.37","Electricity","190440033","23/03/2018","Corporate Asset Management","Central Utilities to Recharge","R2100"
"Wolverhampton City Council","http://opendatacommunities.org/id/metropolitan-district-council/wolverhampton","708251","Total Gas & Power Limited","166232874a","22.46","Electricity","190440067","23/03/2018","Schools","Castlecroft Primary School","R2100"
"Wolverhampton City Council","http://opendatacommunities.org/id/metropolitan-district-council/wolverhampton","708251","Total Gas & Power Limited","3004742928-TGP106","391.83","Electricity","190430779","07/03/2018","Housing Revenue Account","Hostels / Outreach","R2100"
"Wolverhampton City Council","http://opendatacommunities.org/id/metropolitan-district-council/wolverhampton","708251","Total Gas & Power Limited","164889235/18","264.98","Gas","190431937","07/03/2018","Corporate Asset Management","Central Utilities to Recharge","R2101"
"Wolverhampton City Council","http://opendatacommunities.org/id/metropolitan-district-council/wolverhampton","708251","Total Gas & Power Limited","161610135/17","248.56","Gas","190431936","07/03/2018","Corporate Asset Management","Central Utilities to Recharge","R2101"
"Wolverhampton City Council","http://opendatacommunities.org/id/metropolitan-district-council/wolverhampton","708251","Total Gas & Power Limited","166124370","757.20","Gas","190437433","09/03/2018","Corporate Asset Management","Central Utilities to Recharge","R2101"
"Wolverhampton City Council","http://opendatacommunities.org/id/metropolitan-district-council/wolverhampton","708251","Total Gas & Power Limited","166123567","2,782.49","Gas","190437352","09/03/2018","Schools","Tettenhall Wood Special School","R2101"
"Wolverhampton City Council","http://opendatacommunities.org/id/metropolitan-district-council/wolverhampton","708251","Total Gas & Power Limited","166123490","181.41","Gas","190437345","09/03/2018","Schools","Bushbury Hill Primary School","R2101"
"Wolverhampton City Council","http://opendatacommunities.org/id/metropolitan-district-council/wolverhampton","708251","Total Gas & Power Limited","166123391","44.91","Gas","190437335","09/03/2018","Schools","Whitgreave Infant School","R2101"
"Wolverhampton City Council","http://opendatacommunities.org/id/metropolitan-district-council/wolverhampton","708251","Total Gas & Power Limited","166123677","23.52","Gas","190437363","09/03/2018","Corporate Asset Management","Central Utilities to Recharge","R2101"
"Wolverhampton City Council","http://opendatacommunities.org/id/metropolitan-district-council/wolverhampton","708251","Total Gas & Power Limited","157421335C","-29.88","Gas","190437232","09/03/2018","Facilities Management","Management of Vacant Properties","R2101"
"Wolverhampton City Council","http://opendatacommunities.org/id/metropolitan-district-council/wolverhampton","708251","Total Gas & Power Limited","165743297","199.20","Gas","190437238","09/03/2018","Corporate Asset Management","Central Utilities to Recharge","R2101"
"Wolverhampton City Council","http://opendatacommunities.org/id/metropolitan-district-council/wolverhampton","708251","Total Gas & Power Limited","149155781C","-34.52","Gas","190437229","09/03/2018","Facilities Management","Management of Vacant Properties","R2101"
